{"text_format":"3","workbook":"xlsx","n_sheets":5,"sheets":["Информация о Чемпионате","Общая инфраструктура","Рабочее место конкурсантов","Расходные материалы","Личный инструмент конкурсанта"],"not_rendered":{"defined_names":1},"read":"whole","date_system":"1900"}

{"sheet":"Информация о Чемпионате","index":0,"n_rows":17,"n_cols":2,"rows_kept":17}
[]
[]
["Компетенция","Сантехника и отопление (юниоры)"]
["Наименование этапа Чемпионата","Региональный этап Чемпионата по профессиональному мастерству «Профессионалы» в 2026г."]
["Субъект РФ","Красноярский край"]
["Базовая организация расположения конкурсной площадки","КГБПОУ «Канский политехнический колледж»"]
["Адрес конкурсной площадки","663605 Красноярский край, г.Канск, ул.Красноярская, д.26, строен.1, М 1"]
["Даты проведения","10.02.2026-14.02.2026"]
["Главный эксперт","Зорин Вячеслав Николаевич"]
["Электронная почта ГЭ","zo-vn@yandex.ru"]
["Моб.телефон ГЭ","8-913-563-63-08"]
["Технический администратор площадки","Савоськин Артем Викторович"]
["Электронная почта ТАП","artemwc@mail.ru"]
["Моб.телефон ТАП","8-902-980-01-94"]
["Количество конкурсантов (команд)",5]
["Количество рабочих мест",5]
["Количество экспертов (ГЭ+ЭН+ИЭ) + ТАП",8]

{"sheet":"Общая инфраструктура","index":1,"n_rows":144,"n_cols":8,"rows_kept":144,"merged":[[0,0,0,7],[1,0,1,7],[2,0,2,7],[3,0,3,7],[4,0,4,7],[5,0,5,7],[6,0,6,1],[6,2,6,7],[7,0,7,2],[7,3,7,7],[8,0,8,1],[8,2,8,7],[9,0,9,1],[9,2,9,3],[9,4,9,5],[9,6,9,7],[10,0,10,1],[10,2,10,3],[10,4,10,5],[10,6,10,7],[11,0,11,1],[11,2,11,7],[12,0,12,1],[12,2,12,7],[13,0,13,1],[13,2,13,7],[14,0,14,1],[14,2,14,7],[15,0,15,7],[16,0,16,7],[17,0,17,7],[18,0,18,7],[19,0,19,7],[20,0,20,7],[21,0,21,7],[22,0,22,7],[23,0,23,7],[24,0,24,7],[36,0,36,7],[41,0,41,7],[42,0,42,7],[43,0,43,7],[44,0,44,7],[45,0,45,7],[46,0,46,7],[47,0,47,7],[48,0,48,7],[49,0,49,7],[50,0,50,7],[57,0,57,7],[58,0,58,7],[59,0,59,7],[60,0,60,7],[61,0,61,7],[62,0,62,7],[63,0,63,7],[64,0,64,7],[65,0,65,7],[66,0,66,7],[79,0,79,7],[85,0,85,7],[86,0,86,7],[87,0,87,7],[88,0,88,7],[89,0,89,7],[90,0,90,7],[91,0,91,7],[92,0,92,7],[93,0,93,7],[94,0,94,7],[109,0,109,7],[110,0,110,7],[111,0,111,7],[112,0,112,7],[113,0,113,7],[114,0,114,7],[115,0,115,7],[116,0,116,7],[117,0,117,7],[118,0,118,7],[140,0,140,7]]}
["ПРОЕКТ"]
["Инфраструктурный лист для оснащения конкурсной площадки"]
[{"$f":"'Информация о Чемпионате'!B4","v":"Региональный этап Чемпионата по профессиональному мастерству «Профессионалы» в 2026г."}]
["по компетенции"]
[{"$f":"'Информация о Чемпионате'!B3","v":"Сантехника и отопление (юниоры)"}]
["Основная информация о конкурсной площадке:"]
["Субъект Российской Федерации:",null,{"$f":"'Информация о Чемпионате'!B5","v":"Красноярский край"}]
["Базовая организация расположения конкурсной площадки:",null,null,{"$f":"'Информация о Чемпионате'!B6","v":"КГБПОУ «Канский политехнический колледж»"}]
["Адрес базовой организации: ",null,{"$f":"'Информация о Чемпионате'!B7","v":"663605 Красноярский край, г.Канск, ул.Красноярская, д.26, строен.1, М 1"}]
["Главный эксперт: ",null,{"$f":"'Информация о Чемпионате'!B9","v":"Зорин Вячеслав Николаевич"},null,{"$f":"'Информация о Чемпионате'!B10","v":"zo-vn@yandex.ru"},null,{"$f":"'Информация о Чемпионате'!B11","v":"8-913-563-63-08"}]
["Технический администратор площадки: ",null,{"$f":"'Информация о Чемпионате'!B12","v":"Савоськин Артем Викторович"},null,{"$f":"'Информация о Чемпионате'!B13","v":"artemwc@mail.ru"},null,{"$f":"'Информация о Чемпионате'!B14","v":"8-902-980-01-94"}]
["Количество экспертов (ЭН+ГЭ+ИЭ) + ТАП: ",null,{"$f":"'Информация о Чемпионате'!B17","v":8}]
["Количество конкурсантов (команд): ",null,{"$f":"'Информация о Чемпионате'!B15","v":5}]
["Количество рабочих мест: ",null,{"$f":"'Информация о Чемпионате'!B15","v":5}]
["Даты проведения: ",null,{"$f":"'Информация о Чемпионате'!B8","v":"10.02.2026-14.02.2026"}]
["Общая зона конкурсной площадки (оборудование, инструмент, мебель)"]
["Требования к обеспечению зоны (коммуникации, площадь, сети, количество рабочих мест и др.): "]
["Площадь зоны: 405 кв.м."]
["Освещение: Верхнее искусственное освещение (300 люкс)"]
["Интернет : Подключение  ноутбуков к беспроводному интернету (с возможностью подключения к проводному интернету) \t"]
["Электричество: подключения к сети  по (220 В)"]
["Контур заземления для электропитания и сети слаботочных подключений (при необходимости) : не требуется"]
["Покрытие пола: керамогранит  - 405 м2 на всю зону"]
["Подведение/ отведение ГХВС (при необходимости): не требуется"]
["Подведение сжатого воздуха (при необходимости): не требуется"]
["№","Наименование ","Краткие (рамочные) технические характеристики","Вид","Количество","Единица измерения","Итоговое количество","Рекомендации представителей индустрии (указывается конкретное оборудование)"]
[1,"Стол","(ШхГхВ) 1400х600х750\nстоленшница 25 мм.,  ламинированная поверхность столешницы","Мебель",1,"шт",2]
[2,"Стул","Материал каркаса: металл\nМатериал обивки: экокожа\nВысота сиденья: 475 мм\n(ШхГхВ) 530 х 600 х 810\nMax нагрузка: 120 кг","Мебель",1,"шт",4]
[3,"Линейка складная деревянная (\"метр\"), 2м х 16 мм","Длина измерения 2 м\nКласс точности 2\nМатериал измерительной поверхности дерево\nШирина, см 1.6\nГабариты, мм\t247x16x37\nВес, кг\t0.134","Инструменты для проведения оценки",1,"шт.",{"$f":"E29","v":1}]
[4,"Цифровой уровень","Функции:\nИзмерения в градусах, мм/м, %, in/ft\nАвтоматическая калибровка\nЖК экран с подсветкой\nМагниты в основании\nАвтоматическое отключение\nХарактеристики\nАвтоматическое отключение питания, мин 5\nДиапазон углового измерения    4x90\nИсточник питания 2 батареи AAA, 1.5 В\nРабочая температура, °С -10...+50\nТочность, dB ±0.15°\nШаг измерения, dB 0.05°","Инструменты для проведения оценки",1,"шт.",1]
[5,"Угольник разметочный 165*305","Угольник разметочный 165*305\nДлина большей стороны 305 мм (разметка на 300 мм), ширина 50 мм, толщина 3 мм\nДлина меньшей стороны 165 мм, ширина 40 мм, толщина 12 мм.\nАнодированное антикоррозийное покрытие;\nЛазерная гравировка шкалы","Инструменты для проведения оценки",1,"шт.",2]
[6,"Электронный угломер 30","Сосотоит из двух металлических линеек и ЖК цифрового дисплея. Плечи угломера при выставлении в одну линию (раскрытии на 180°) образуют обычную линейку для измерения расстояний. Рабочий диапазон °0...360, Разрешение°0,1, Питание/время работы1 батарея 3V CR 2032, Точность измерения 0,3°.","Инструменты для проведения оценки",1,"шт.",1]
[7,"Штангенциркуль  с цифровой индикацией ","Максимальная величина измерения\n150 мм\nЦена деления\n0.01 мм","Инструменты для проведения оценки",1,"шт.",1]
[8,"Цифровой динамометрический ключ + набор насадок","Ключ динамометрический с цифровой индикацией, усилие затяжки 7-135Nm, оснащен дисплеем, на котором отображаются рабочие параметры, и трещоткой. Инструмент имеет посадочный квадрат 3/8 и выполнен из прочной высококачественной стали.","Инструменты",1,"шт.",1]
[9,"Комплект отверток (по размеру крепежных элементов оборудования)","Набор крестовых Ph (1,2,3), Pz (1,2,3) и шлицевых отверток","Инструменты для проведения оценки",1,"шт.",1]
[10,"Комплект шестигранных ключей SW1,5 - SW10мм","Набор шестигранников\n 9 размеров: SW1.5-2-2.5-3-4-5-6-8-10мм.  Головки скругленные с длинной стороны.\nМатериал закаленная сталь S2.","Инструменты для проведения оценки",1,"шт.",1]
["Охрана труда и техника безопасности"]
["№","Наименование ","Краткие (рамочные) технические характеристики","Вид","Количество","Единица измерения","Итоговое количество","Рекомендации представителей индустрии (указывается конкретное оборудование)"]
[1,"Огнетушитель","Огнетушитель углекислотный ОУ-3 (5 литров)","Охрана труда",1,"шт",3]
[2,"Кулер 19 л (холодная/горячая вода)","Аппарат подготовки горячей и холодной питьевой воды","Охрана труда",1,"шт",{"$f":"E40","v":1}]
[3,"Бутыль с водой для кулера 19л.","Питьевая вода\n19 литров в обменной таре\nВес, кг 19 кг","Расходные материалы",1,"шт",4]
["Комната Конкурсантов (оборудование, инструмент, мебель) (по количеству конкурсантов)"]
["Требования к обеспечению зоны (коммуникации, площадь, сети, количество рабочих мест и др.): "]
["Площадь зоны: 10 кв.м."]
["Освещение: Верхнее искусственное освещение (300 люкс)"]
["Интернет : не требуется \t"]
["Электричество: подключения к сети  по (220 Вольт)\t"]
["Контур заземления для электропитания и сети слаботочных подключений (при необходимости) : не требуется"]
["Покрытие пола: керамогранит  - 10 м² на всю зону"]
["Подведение/ отведение ГХВС (при необходимости) : не требуется"]
["Подведение сжатого воздуха (при необходимости): не требуется"]
["№","Наименование ","Краткие (рамочные) технические характеристики","Вид","Количество","Единица измерения","Итоговое количество","Рекомендации представителей индустрии (указывается конкретное оборудование)"]
[1,"Вешалка","Напольная металлическая гардеробная вешалка, 10 крючков","Мебель",1,"шт.",{"$f":"E53","v":1}]
[2,"Стол","(ШхГхВ) 1400х600х750, столеншница не тоньше 25 мм. ламинированная поверхность столешницы","Мебель",1,"шт ",2]
[3,"Стул","Материал каркаса: металл\nМатериал обивки: ткань\nВысота сиденья: 475 мм\n(ШхГхВ) 530 х 600 х 810\nMax нагрузка: 120 кг","Мебель",1,"шт ",5]
[4,"Сетевой фильтр (Пилот), 6 розеток","Электропитание 220В, 50Гц. Максимальный ток 10 А. Количество розеток 6. Тип розеток евростандарт, заземляющий контакт. Использование вилок евростандарта и росстандарта. Розетки утопленного типа. Тип вилки евростандарт. Длина сетевого шнура 10 м. Безопасность: Фильтр импульсных помех, защита от перегрузки., механич. защита розеток, защита от короткого замыкания, пожаробезопасный корпус, встроенный выключатель","Электроснобжение",1,"шт.",{"$f":"E56","v":1}]
[5,"Мусорная корзина","Объем:11 л\nМатериал:пластик","Хоз. Инвентарь",1,"шт.",{"$f":"E57","v":1}]
["Комната Экспертов (оборудование, инструмент, мебель)"]
["Требования к обеспечению зоны (коммуникации, площадь, сети, количество рабочих мест и др.): "]
["Площадь зоны: 38 кв.м."]
["Освещение: Верхнее искусственное освещение (300 люкс)"]
["Интернет : Подключение  ноутбуков к беспроводному интернету (с возможностью подключения к проводному интернету)  \t"]
["Электричество:подключения к сети  по (220 Вольт)\t"]
["Контур заземления для электропитания и сети слаботочных подключений (при необходимости) : не требуется"]
["Покрытие пола: керамогранит  - 38 м² на всю зону"]
["Подведение/ отведение ГХВС (при необходимости) : не требуется"]
["Подведение сжатого воздуха (при необходимости): не требуется"]
["№","Наименование ","Краткие (рамочные) технические характеристики","Вид","Количество","Единица измерения","Итоговое количество","Рекомендации представителей индустрии (указывается конкретное оборудование)"]
[1,"Ноутбук, ПК","Ноутбук или ПК \nУстановлено программное обеспечение: САПР (CAD), программа для чтения PDF, офисный пакет программ, а так же точка доступа выхода в интернет","Оборудование IT",1,"шт",{"$f":"E69","v":1}]
[2,"Подключение ноутбуков к проводному интернету WAN","Не Wi-Fi! 100 мбит/сек","Оборудование IT",1,"шт",1]
[3,"Стол","(ШхГхВ) 1400х600х750, 25 мм.  ламинированная поверхность столешницы","Мебель",1,"шт",5]
[4,"Стул","Материал каркаса: металл\nМатериал обивки: экокожа\nВысота сиденья: 475 мм\n(ШхГхВ) 530 х 600 х 810\nMax нагрузка: 120 кг","Мебель",1,"шт",10]
[5,"Проектор мультимедийный"," (DLP, 2700 люмен, 10000:1, 1280x800, D-Sub, HDMI, RCA, S-Video, USB, LAN, ПДУ, 2D / 3D)","Оборудование IT",1,"шт.",1]
[6,"Экран для проектора","На штативе, 16:9","Оборудование IT",1,"шт.",1]
[7,"Магнитно-маркерная доска-флипчарт","Вид рабочей поверхности:магнитно-маркерная\nЛоток для принадлежностей:да\nДержатель для бумажного блока:да\nПокрытие:лаковое\nШирина рабочей поверхности:700 мм","Канцелярия",1,"шт",1]
[8,"Бумага для магнитно-маркерной доски (флипчарт)","Бумажный блок содержит 20 белых листов плотность\n6 отверстий для крепления, расстояние между которыми составляет 50 см. \nРазмер – 640x920 мм. \nКоличество листов - 20 шт\nРазметка в клетку 25х25мм","Расходные материалы",1,"шт",2]
[9,"Вешалка гардеробная напольная с крючками","Напольная металлическая гардеробная вешалка, 15 крючков","Мебель",1,"шт",1]
[10,"Сетевой фильтр (Пилот), 6 розеток ","Электропитание 220В, 50Гц. Максимальный ток 10 А. Количество розеток 6. Тип розеток евростандарт, заземляющий контакт. Использование вилок евростандарта и росстандарта. Розетки утопленного типа. Тип вилки евростандарт. Длина сетевого шнура 10 м. Безопасность: Фильтр импульсных помех, защита от перегрузки., механич. защита розеток, защита от короткого замыкания, пожаробезопасный корпус, встроенный выключатель","Электроснобжение",1,"шт",2]
[11,"Мусорная корзина","Объем:11 л\nМатериал:пластик\nДиаметр:260 мм","Хоз. Инвентарь",1,"шт",2]
["Охрана труда и техника безопасности"]
["№","Наименование ","Краткие (рамочные) технические характеристики","Вид","Количество","Единица измерения","Итоговое количество","Рекомендации представителей индустрии (указывается конкретное оборудование)"]
[1,"Аптечка","Аптека для оказания первой помощи, универсальная, с инструкцией по применению","Охрана труда",1,"шт",{"$f":"E82","v":1}]
[2,"Кулер 19 л (холодная/горячая вода)","Аппарат подготовки горячей и холодной питьевой воды","Охрана труда",1,"шт",{"$f":"E83","v":1}]
[3,"Бутыль с водой для кулера 19л.","Питьевая вода\n19 литров в обменной таре\nВес, кг 19 кг","Охрана труда",1,"шт",4]
[4,"Огнетушитель","Огнетушитель углекислотный ОУ-3 (5 литров)","Охрана труда",1,"шт",{"$f":"E85","v":1}]
["Комната Главного эксперта (оборудование, инструмент, мебель)"]
["Требования к обеспечению зоны (коммуникации, площадь, сети, количество рабочих мест и др.): "]
["Площадь зоны: 38 кв.м."]
["Освещение: Верхнее искусственное освещение (300 люкс)"]
["Интернет : Подключение  ноутбуков к беспроводному интернету (с возможностью подключения к проводному интернету)  \t"]
["Электричество: подключениея к сети  по (220 Вольт)\t"]
["Контур заземления для электропитания и сети слаботочных подключений (при необходимости) : не требуется"]
["Покрытие пола: керамогранит - 38 м² на всю зону"]
["Подведение/ отведение ГХВС (при необходимости) : не требуется"]
["Подведение сжатого воздуха (при необходимости): не требуется"]
["№","Наименование ","Краткие (рамочные) технические характеристики","Вид","Количество","Единица измерения","Итоговое количество","Рекомендации представителей индустрии (указывается конкретное оборудование)"]
[1,"Ноутбук, ПК","Процессор - Core 5; базовая тактовая частота, ГГц 2.4, масимальная тактовая частота, ГГц   4.1 ; объем кэш-памяти третьего уровня,     8 МБ;  объем оперативной  памяти  32 ГБ;  Твердотельный накопитель, емкость 512 ГБ; Накопитель на жестком магнитном диске объем, Тб –1; Кэш-память диска, Мб   128; Дискретная видеокарта объем видеопамяти  4 ГБ; тип видеопамяти GDDR5; диагональ, дюйм 15.6; разрешение, пикс 1920х1080; диодная подсветка; порт USB-A 3.0   2 шт. Програмное обеспечение по проектированию, программа для чтения PDF, а так же точка доступа выхода в интернет","Оборудование IT",1,"шт",{"$f":"E97","v":1}]
[2,"Подключение ноутбуков к проводному интернету WAN","Не Wi-Fi! 100 мбит/сек","Оборудование IT",1,"шт",1]
[3,"Запасной картридж для МФ","Дополнительный запасной картридж, соответствующий модели МФУ.","Расходные материалы",1,"шт",1]
[4,"Стол ","(ШхГхВ) 1400х600х750, 25 мм.  ламинированная поверхность столешницы","Мебель",1,"шт",2]
[5,"Стул","Материал каркаса: металл\nМатериал обивки: экокожа\nВысота сиденья: 475 мм\n(ШхГхВ) 530 х 600 х 810\nMax нагрузка: 120 кг","Мебель",1,"шт",1]
[6,"МФУ цветная печать, A3, 1200x1200 dpi, Ethernet (RJ-45),NFC, WiFi (для ГЭ)","Многофункциональное устройство печати. Технология печати: лазерная, цветная. Максимальный формат A3. Автоматическая двусторонняя печать. Максимальное разрешение печати\n1200x1200 dpi. Оптическое разрешение сканера 600x600 dpi. Максимальный формат бумаги (сканер) A3. Устройство автоподачи двухстороннее. Функции сканирование на FTP , сканирование в электронную почту , TWAIN , сканирование с отправкой по протоколу SMB , сканирование на USB-носитель , WSD(WIA)-сканирование (USB, сетевое). Память/Процессор. Оперативная память 1024 МБ.\nЧастота процессора 1200 МГц. Интерфейсы слот для дополнительного внутреннего принт-сервера или жесткого диска , слот для карт Compact Flash , USB , Ethernet (RJ-45). Мобильные технологии печати: Apple AirPrint , Kyocera MobilePrint , Wi-Fi Direct , Mopria (Android) , Google Cloud Print","Оборудование IT",1,"шт",1]
[7,"МФУ ч/б печать, A4, 20 стр / мин, 512Mb, лазерное МФУ, факс, DADF, двустор. печать, USB 2.0, сетевой","Многофункциональное устройство печати. Технология печати: лазерная, ч/б печать, A4, 20 стр / мин, 512Mb, лазерное МФУ, факс, DADF, двустор. печать, USB 2.0, сетевой","Оборудование IT",1,"шт",1]
[8,"Степлер со скобами","Материал корпуса металл\nТип и размер скоб 24/6, 26/6, 24/8\nПробивная способность 50 лист.\nГлубина закладки бумаги 80 мм\n24/6","Канцелярия",1,"шт",2]
[9,"Стеллаж металлический","(ШхГхВ) 2000х500х2000, металлический, 5 полок","Мебель",1,"шт",1]
[10,"Шкаф с ячейками","Не менее 4-х запираемых ячеек (ШхГхВ) 400х500х2000","Мебель",1,"шт",1]
[11,"Вешалка для одежды напольная ","Напольная металлическая гардеробная вешалка, 3-4 крючка","Мебель",1,"шт",1]
[12,"Сетевой фильтр (Пилот), 6 розеток","Электропитание 220В, 50Гц. Максимальный ток 10 А. Количество розеток 6. Тип розеток евростандарт, заземляющий контакт. Использование вилок евростандарта и росстандарта. Розетки утопленного типа. Тип вилки евростандарт. Длина сетевого шнура 10 м. Безопасность: Фильтр импульсных помех, защита от перегрузки., механич. защита розеток, защита от короткого замыкания, пожаробезопасный корпус, встроенный выключатель","Электроснобжение",1,"шт",1]
[13,"Мусорная корзина ","Объем:11 л\nМатериал:пластик\nДиаметр:260 мм","Хоз. Инвентарь",1,"шт",1]
["Складское помещение"]
["Требования к обеспечению зоны (коммуникации, площадь, сети, количество рабочих мест и др.): "]
["Площадь зоны: 28 кв.м."]
["Освещение: Верхнее искусственное освещение (300 люкс) "]
["Интернет : не требуется"]
["Электричество: подключения к сети  по (220 Вольт)\t"]
["Контур заземления для электропитания и сети слаботочных подключений (при необходимости) : не требуется"]
["Покрытие пола: керамогранит  - 28 м² на всю зону"]
["Подведение/ отведение ГХВС (при необходимости) : не требуется"]
["Подведение сжатого воздуха (при необходимости): не требуется"]
["№","Наименование ","Краткие (рамочные) технические характеристики","Вид","Количество","Единица измерения","Итоговое количество","Рекомендации представителей индустрии (указывается конкретное оборудование)"]
[1,"Стол","(ШхГхВ) 1400х600х750, 25 мм.  ламинированная поверхность столешницы","Мебель",1,"шт",{"$f":"E121","v":1}]
[2,"Стул","Материал каркаса: металл\nМатериал обивки: ткань\nВысота сиденья: 475 мм\n(ШхГхВ) 530 х 600 х 810\nMax нагрузка: 120 кг","Мебель",1,"шт",1]
[3,"Стеллаж","СТЕЛЛАЖ МКФ 15614-2.0\nМеталлические складские стеллажи серии МКФ предназначены для хранения различных грузов. Допустимая равномерно распределенная нагрузка на каждый ярус - не более 300 кг, нагрузка на всю секцию - не более 2100 кг.","Мебель",1,"шт",6]
[4,"Нож канцелярский","Ширина лезвия 18 мм\nВыдвижное лезвие есть\nМатериал рукояти металл\nОбрезиненная рукоять нет\nКонструкция выдвижной\nСкладной нет\nКласс товара Бытовой\nФорма лезвия сегментированное","Канцелярия",1,"шт",2]
[5,"Пакеты для мусора 50 л 20 шт","Мешки для мусора (50л/20 шт)\nОсобо прочные мешки для строительного мусора и большие мешки объемом 50 литров.","Расходные материалы",1,"упак",2]
[6,"Ножницы","Хозяйственные ножницы 175мм","Канцелярия",1,"шт",2]
[7,"Электрическая дрель с регулировкой скорости","Тип инструмента дрель безударная\nТип двигателя щеточный\nМощность  850 Вт\nТип патрона  быстрозажимной\nMax размер патрона  13 мм\nКрепление патрона 1/2\nЧисло скоростей  2\nРегулировка оборотов  есть\nНаличие подсветки  нет\nНаличие реверса  да\nМах диаметр сверления (дерево)  40 мм\nMax диаметр сверления (металл)  13 мм\nВес нетто  2.6 кг","Инструменты",1,"шт",1]
[8,"Биметаллическая коронка TPI 38 мм","Разборная да\nМатериал применения коронки алюминий, древесина, нержавеющая сталь, пластик, сталь, чугун\nТип коронки биметаллическая\nТип хвостовика коронки отсутствует\nДержатель в комплекте нет\nТолщина лезвия (мм) 1,5\nTPI зубьев коронки 10\nДиаметр коронки max. (мм) 38\nГлубина сверления коронки (мм) 38\nЦентрирующее сверло нет\nМатериал корпуса коронки HSSE M42 Co8%","Инструменты",1,"шт",5]
[9,"Адаптер для металлических коронок 32-250 мм","Диаметр коронки max. (мм) 250\nДиаметр коронки min. (мм) 32\nДиаметр центрирующего сверла (мм) 6,3\nМатериал адаптера сталь 45\nХвостовик HEX 11","Инструменты",1,"шт",2]
[10,"Аккумуляторная дрель-шуруповерт","Тип патрона: быстрозажимной\nЧисло ступеней крутящего момента: 15\nУровень звукового давления, дБ (А): 76\nMax крутящий момент (мягкий), Нм: 27\nВыходная мощность, Вт: 460\nУровень звуковой мощности, дБ (А): 87\nУровень вибрации, м/с²: 2.5\nНапряжение, В: 18\nЧисло скоростей: 2\nMax диаметр патрона, мм: 13\nMax крутящий момент, Нм: 70\nMax диаметр сверления (дерево), мм: 40\nMax диаметр сверления (металл), мм: 13","Инструменты",1,"шт",2]
[11,"Калибратор для многослойных металлопластиковых труб Ø 16, 20, 26 мм","Предназначен для подготовки торца трубы для соединения\nУстраняет овальность, формирует внутреннюю и наружнуую фаску \nДиаметры труб:\n16 мм, толщиной стенки 2мм\n20 мм, толщиной стенки 2мм\n26 мм, толщиной стенки 3мм.","Инструменты",1,"шт",1]
[12,"Ручной труборез для нержавеющих труб до 1 3/8\" (до 35мм)","Для резки нержавеющих труб диаметром от 1/8\" до 1.3/8\" (от 3мм до 35мм). В комплекте с 2 отрезными роликами и встроенным гратоснимателем.","Инструменты",1,"шт",1]
[13,"Ручной фаскосниматель с несменным лезвием HSS E100","Для снятия заусенцев на медных трубах диаметром от 3мм до 42мм.","Инструменты",1,"шт",2]
[14,"Зажимные клещи, длина 250мм, захват 46мм","Клещи с параллельными губками с удобной перестановкой захвата. Предназначены для работы с гладкими и параллельными деталями, такими как гайки, болты, кабельные болтовые соединения, тонкостенные листы. Эргономичная форма с высоким коэффициентом передачи усилия на деталь. Плотное место соединения губок и плавная, легкая регулировка захвата детали. Ключи хромированные, ручки с ПВХ-покрытием.","Инструменты",1,"шт",2]
[15,"Разводной ключ","Разводной трубный ключ\nМаксимальное раскрытие губок не менее 39мм (1.1/2\") ","Инструменты",1,"шт",2]
[16,"Ножницы для резки металлопластиковых труб 4-мя роликами с игольчатыми подшипниками для вращения трубы во время резки","Инструмент для резки металлополимерных труб Система 4 роликами с игольчатыми подшипниками для вращения трубы во время резки.\nОсь в стальной втулке с игольчатыми подшипниками.\nСпециальная геометрия края лезвия и покрытие PTFE.\nИнтегрированная система резки гофры без повреждения внутренней трубы (18-35мм).\nС трехгранными лезвиями с PTFE-покрытием с увеличением времени службы в 3 раза с поворотом лезвия на 120º.","Инструменты",1,"шт",2]
[17,"Набор шестигранных ключей SW1.5-2-2.5-3-4-5-6-8-10мм","Набор шестигранников\n 9 размеров: SW1.5-2-2.5-3-4-5-6-8-10мм.  Головки скругленные с длинной стороны.\nМатериал закаленная сталь S2.","Инструменты",1,"шт",1]
[18,"Комплект отверток (по размеру крепежных элементов оборудования)","Набор крестовых Ph (1,2,3), Pz (1,2,3) и шлицевых отверток","Инструменты",1,"шт",1]
[19,"Плоскогубцы, 1000В, длина 185мм","Индукционно закалены (64 HRC), произведены из специальной инструментальной стали. Общая длина 160мм, длина губок 40мм.","Инструменты",1,"шт",1]
[20,"Набор из 5 ручных напильников с различной геометрией","С ручками. \nВ наборе плоский тупоносый, плоский остроносый, круглый, квадратный, треугольный.","Инструменты",1,"шт",1]
["Охрана труда и техника безопасности"]
["№","Наименование ","Краткие (рамочные) технические характеристики","Вид","Количество","Единица измерения","Итоговое количество","Рекомендации представителей индустрии (указывается конкретное оборудование)"]
[1,"Аптечка","Аптека для оказания первой помощи, универсальная, с инструкцией по применению","Охрана труда",1,"шт",{"$f":"E143","v":1}]
[2,"Огнетушитель","Огнетушитель углекислотный ОУ-3 (5 литров)","Охрана труда",1,"шт",{"$f":"E144","v":1}]

{"sheet":"Рабочее место конкурсантов","index":2,"n_rows":90,"n_cols":8,"rows_kept":90,"merged":[[0,0,0,7],[1,0,1,7],[2,0,2,7],[3,0,3,7],[4,0,4,7],[5,0,5,7],[6,0,6,1],[6,2,6,7],[7,0,7,2],[7,3,7,7],[8,0,8,1],[8,2,8,7],[9,0,9,1],[9,2,9,3],[9,4,9,5],[9,6,9,7],[10,0,10,1],[10,2,10,3],[10,4,10,5],[10,6,10,7],[11,0,11,1],[11,2,11,7],[12,0,12,1],[12,2,12,7],[13,0,13,1],[13,2,13,7],[14,0,14,1],[14,2,14,7],[15,0,15,7],[16,0,16,7],[17,0,17,7],[18,0,18,7],[19,0,19,7],[20,0,20,7],[21,0,21,7],[22,0,22,7],[23,0,23,7],[24,0,24,7],[25,0,25,7],[64,0,64,7],[72,0,72,7],[73,0,73,7],[74,0,74,7],[75,0,75,7],[76,0,76,7],[77,0,77,7],[78,0,78,7],[79,0,79,7],[80,0,80,7],[81,0,81,7],[82,0,82,7],[87,0,87,7]]}
["ПРОЕКТ"]
["Инфраструктурный лист для оснащения конкурсной площадки"]
[{"$f":"'Информация о Чемпионате'!B4","v":"Региональный этап Чемпионата по профессиональному мастерству «Профессионалы» в 2026г."}]
["по компетенции"]
[{"$f":"'Информация о Чемпионате'!B3","v":"Сантехника и отопление (юниоры)"}]
["Основная информация о конкурсной площадке:"]
["Субъект Российской Федерации:",null,{"$f":"'Информация о Чемпионате'!B5","v":"Красноярский край"}]
["Базовая организация расположения конкурсной площадки:",null,null,{"$f":"'Информация о Чемпионате'!B6","v":"КГБПОУ «Канский политехнический колледж»"}]
["Адрес базовой организации: ",null,{"$f":"'Информация о Чемпионате'!B7","v":"663605 Красноярский край, г.Канск, ул.Красноярская, д.26, строен.1, М 1"}]
["Главный эксперт: ",null,{"$f":"'Информация о Чемпионате'!B9","v":"Зорин Вячеслав Николаевич"},null,{"$f":"'Информация о Чемпионате'!B10","v":"zo-vn@yandex.ru"},null,{"$f":"'Информация о Чемпионате'!B11","v":"8-913-563-63-08"}]
["Технический администратор площадки: ",null,{"$f":"'Информация о Чемпионате'!B12","v":"Савоськин Артем Викторович"},null,{"$f":"'Информация о Чемпионате'!B13","v":"artemwc@mail.ru"},null,{"$f":"'Информация о Чемпионате'!B14","v":"8-902-980-01-94"}]
["Количество экспертов (ЭН+ГЭ+ИЭ) + ТАП: ",null,{"$f":"'Информация о Чемпионате'!B17","v":8}]
["Количество конкурсантов (команд): ",null,{"$f":"'Информация о Чемпионате'!B15","v":5}]
["Количество рабочих мест: ",null,{"$f":"'Информация о Чемпионате'!B15","v":5}]
["Даты проведения: ",null,{"$f":"'Информация о Чемпионате'!B8","v":"10.02.2026-14.02.2026"}]
["1. Зона для работ предусмотренных в Модулях А, Б, В. Задачи 1, 2, 3, 5, 6. обязательных к выполнению (инвариант)  \n (по количеству рабочих мест) "]
["Рабочее место Конкурсанта (основное оборудование, вспомогательное оборудование, инструмент (по количеству рабочих мест)"]
["Требования к обеспечению зоны (коммуникации, площадь, сети, количество рабочих мест и др.): "]
["Площадь зоны: не менее 12 кв.м."]
["Освещение: Верхнее искусственное освещение (300 люкс)"]
["Интернет : Подключение  ноутбуков к беспроводному интернету (с возможностью подключения к проводному интернету) \t"]
["Электричество: 3 подключения к сети  по (220 Вольт)\t"]
["Контур заземления для электропитания и сети слаботочных подключений (при необходимости) : не требуется"]
["Покрытие пола: фанерный подиум  - 12 м2 на всю зону"]
["Подведение/ отведение ГХВС (при необходимости) : не требуется"]
["Подведение сжатого воздуха (при необходимости): не требуется"]
["№","Наименование ","Краткие (рамочные) технические характеристики","Вид","Количество","Единица измерения","Итоговое количество","Рекомендации представителей индустрии (указывается конкретное оборудование)"]
[1,"Верстак слесарный","Максимальная нагрузка: 1500 кг\nОбласть применения:\nОрганизация рабочего места на производстве, в мастерской, гараже или учебном заведении.\nГабаритные размеры без экрана (ВxШxГ):\n825x1000x700 мм\nТолщина столешницы: 24 мм\nТип столешницы:\nфанера, покрытая оцинкованным листовым металлом (ЦФ), \nКрепление столешницы:\nБолтами и втулками, установленными на производстве\nТип краски:\nПорошковая эпоксидная краска\nУстойчива к механическим воздействиям и агрессивным жидкостям: Да\nНаличие антикоррозийной обработки: Есть\nЦвет рамы, корпуса тумб, стоек экрана, аксессуаров:\nСветло-серый (RAL 7038)","Мебель",1,"шт (на 1 раб.место)",{"$f":"E28*$C$13","v":5}]
[2,"Компрессор с гибким шлангом и быстросъемными адаптерами","Компрессор с манометром для обеспечения давления 2 бар, точность измерения давления 0,1 бар. Гибкий шланг длина 5 метров, быстросъесные соединения для присоединения с трубопроводам: 1/2\" наружная резьба - 1 шт., 1/2\" внутренняя резьба - 1 шт.","Оборудование",1,"шт.",5]
[3,"Параллельные тиски 140 мм с закаленными углообразными губками предназначенными для зажима труб диаметром 3/4-2\"","Стальные кованные тиски с коваными, закаленными углообразными губками для труб, расположенными под параллельными губками. Защищенный, крепкий болт с трапециевидной резьбой, регулируемая двухсторонняя призменная направляющая. Надставка-наковальня для рихтовочных работ.\nШирина губок: не менее 140мм, Ширина зажима: не менее 150мм, Глубина зажима: не менее 80мм, Максимальный диаметр зажимаемой трубы: не менее 2 дюймов. Вес: не менее 15,6 кг.","Инструмент",1,"шт (на 1 раб.место)",{"$f":"E30*$C$13","v":5}]
[4,"Ножницы для резки металлопластиковых труб 4-мя роликами с игольчатыми подшипниками для вращения трубы во время резки","Магниевый корпус\n лезвие сделано из нержавеющей стали, специальная геометрия края лезвия и покрытие PTFE\nАвтоматическое раскрытие\nСистема с 4-мя роликами с игольчатыми подшипниками для вращения трубы во время резки\nВ месте соединения имеется стальной паз с игольчатыми подшипниками для лучшего скольжения рукояток\nИнтегрированная система резки гофрозащиты с 4-мя трехгранными лезвиями с PTFE-покрытием, увеличением времени службы в 3 раза и поворотом лезвия на 120° позволяет резать гофротрубу без повреждения внутренней трубы Ø 18 – 35 мм\nПротивоударные прорезиненные рукоятки\nБлокировка одной рукой","Инструмент",1,"шт (на 1 раб.место)",5]
[5,"Набор для пресс систем, в пласт. чемодане, с аккумулятором и зарядным устройством, без пресс-клещей","Автономный аккумуляторный инструмент для пресс-фитинга. Гидравлический привод позволяет выполнять принудительный обжим фитингов, диаметр которых достигает 110 мм. Малый вес и компактные формы инструмента  представляют удобство в эксплуатации в любых условиях. Возможность работать одной рукой, совершать обжим в местах с затрудненным доступом. Сервисный интервал обслуживания составляет не менее 40 000 циклов прессования. Вес без аккумулятора: не более 2,9 кг. Диаметр прессования от 12 до 108 мм. Угол поворота клещей: не менее 270 градусов, Усилие обжима: не менее 32 кН, Комплектация: Пресс электрогидравлический – 1шт.; Аккумулятор 18 В, 4.0 А.ч. – 1шт.; Зарядное устройство– 1шт, Красный пластиковый кейс из ABS пластика с складной ручкой из ABS пластика с системой Рокейс – 1шт.; ","Инструмент",1,"шт (на 1 раб.место)",5]
[6,"Клещи для пресс-фитинга SV-15, совместимы с пресс инструментом","Цветовая кодировка и маркировка с указанием размера и пресс-контура: исключение ошибки при выборе клещей, Нумерация партии и поштучное испытание: высокий стандарт качества для материала и пресс-контура, Универсальное крепление: для всех прессов с совместимым креплением для пресс-клещей.  Из кованой специальной стали с высоким коэффициентом нагружения: подходит для всех прессов с постоянным усилием обжима 32 – 34 кН,  Специальная закалка:высокая степень эластичности и упругости, долговременная защита от коррозии: оптимальное решение для жестких условий эксплуатации на стройке. Размер - для обжима медных труб 15 мм, тип SV/V.","Инструмент",1,"шт (на 1 раб.место)",5]
[7,"Клещи для пресс-фитинга TH-16, совместимы с пресс инструментом","Цветовая кодировка и маркировка с указанием размера и пресс-контура: исключение ошибки при выборе клещей, Нумерация партии и поштучное испытание: высокий стандарт качества для материала и пресс-контура, Универсальное крепление: для всех прессов с совместимым креплением для пресс-клещей.  Из кованой специальной стали с высоким коэффициентом нагружения: подходит для всех прессов с постоянным усилием обжима 32 – 34 кН,  Специальная закалка:высокая степень эластичности и упругости, долговременная защита от коррозии: оптимальное решение для жестких условий эксплуатации на стройке. Размер - для обжима металлопластиковых труб 16 мм, тип ТН.","Инструмент",1,"шт (на 1 раб.место)",5]
[8,"Комплект инструментов для расширения труб и запрессовки втулок, для диаметров 16 - 32мм","Механический пресс-инструмент предназначен для монтажа аксиальных фитингов (с надвижной гильзой) в трубопроводных системах\nВ комплекте:\nРучной расширитель с расширительными головками для труб диаметром 16 мм; 20 мм; 25 мм; 32 мм\nРучной запрессовщик пресс-втулок с сменными насадками диаметром 16 мм; 20 мм; 25 мм; 32 мм","Инструмент",1,"шт (на 1 раб.место)",5]
[9,"Трубогиб для точной гибки многослойных металлопластиковых труб Ø 16мм","Диаметр, мм: 16\nУгол изгиба от 0 до 180° \nРазметка угла поворота выгравирована на инструменте\nТрубогиб с храповым механизмом предназначен для точной гибки многослойных металлопластиковых труб\nКонструкция трубогиба позволяет производить изгиб труб с максимально возможным радиусом изгиба, без повреждения трубы и заужения проходного сечения","Инструмент",1,"шт (на 1 раб.место)",5]
[10,"Калибратор для МПТ размером 16X2мм - 20X2мм - 26X3мм.","Калибратор для труб Д16, Д20 и Д26, предназначается для систем водоснабжения и отопления. Не для интенсивного использования.","Инструмент",1,"шт (на 1 раб.место)",5]
[11,"Пистолет для накачки шин с манометром;","Пистолет оснащен большим манометром, благодаря которому очень удобно отслеживать остаточное давление. Инструмент обладает большим рабочим ресурсом, а также отличается низкой пожаро- и взрывоопасностью рабочего процесса. Корпус выполнен из металла, что позволяет добиться отличной ударостойкости.\nХарактеристики\nРасход воздуха, л/мин 100\nРабочее давление, бар 10\nТип соединения рапид 1/4\"","Оборудование для проведения испытаний",1,"шт (на 1 раб.место)",5]
[12,"Шланг воздушный спиральный с фитингами (5 м, 8х12 мм, 10 бар) ","Шланг воздушный с фитингами применяется для присоединения инструмента к компрессору. Имеет спиральную форму, что обеспечивает его гибкость. Шланг длиной 5 метров позволяет работать на расстоянии от компрессора. Внешний диаметр 12 мм\nВнутренний диаметр 8 мм\nДлина, м 5\nМаксимальное давление, бар 10\nМатериал резина (полиуретан)\nТип соединения рапид (EURO)\nФорма спиральный","Оборудование для проведения испытаний",1,"шт (на 1 раб.место)",5]
[13,"Разъемное соединение рапид (муфта), 1/2\"M, наружн. резьба","Переходник для соединения частей пневмомагистрали. Разъемы - наружная резьба 1/2\" и рапид папа.","Оборудование для проведения испытаний",1,"шт (на 1 раб.место)",5]
[14," Разъемное соединение рапид (штуцер), 1/2\"M, наруж.резьба","Разъемное соединение для подключения компрессора к пневмоинструменту. Переход с с резьбы наружной 1/2\" папа на быстросъемное соединение рапид.","Оборудование для проведения испытаний",1,"шт (на 1 раб.место)",5]
[15,"Набор фитингов 1/4\" ","Набор фитингов используется совместно с компрессорным оборудованием для соединения шланга с пневматическим инструментом. В комплекте пять фитингов. Созданная конструкция обладает высокой надежностью и герметичностью.\nФитинг 1/4F – рапид Euro (мама) – 1 шт.\nФитинг 1/4F – рапид Euro (папа) – 1 шт.\nФитинг 1/4M – рапид Euro (папа) – 3 шт.","Оборудование для проведения испытаний",1,"шт (на 1 раб.место)",5]
[16,"Сварочный аппарат для раструбной сварки ПП труб + комплект насадок","Сварочный аппарат для раструбной  сварки ПП труб. С цифровой регулировкой температуры и тефлоновым покрытием нагревательного элемента и насадок. В комплекте насадки 20, 25, 32 и 40мм","Инструмент",1,"шт (на 1 раб.место)",{"$f":"E43*$C$13","v":5}]
[17,"Лестница-стремянка","Лестница-стремянка, 4 ступени","Инструмент",1,"шт (на 1 раб.место)",5]
[18,"Ведро для мусора с фиксатором 20л сер.металлик/черный","Объем 20 л\nЦвет серый металлик\nМатериал полипропилен\nВысота 383 мм\nШирина 232 мм\nДлина 300 мм\nФорма бака квадратная/прямоугольная","Хоз. Инвентарь",1,"шт (на 1 раб.место)",5]
[19,"Щетка для очистки верстака, малая","Тип:щетка-сметка\nМатериал рукояти:дерево\nМатериал щетины:ПЭТ\nЖесткость щетины:жёсткая\nКоличество рядов:4\nЦвет щетки:зеленый/бежевый","Хоз. Инвентарь",1,"шт (на 1 раб.место)",5]
[20,"Щетка для очистки пола, на длинной ручке","Тип:щетка-веник\nУличная:нет\nНазначение:для пола\nНаличие ручки:есть\nМатериал рукояти:пластик\nДлина ручки:1170 мм\nДиаметр и тип крепления для ручки/черенка:22 мм","Хоз. Инвентарь",1,"шт (на 1 раб.место)",5]
[21,"Совок для очистки","Тип:совок\nШирина рабочей части:225 мм\nНаличие ручки:есть\nМатериал рукояти:пластик\nДлина:240 мм","Хоз. Инвентарь",1,"шт (на 1 раб.место)",5]
[22,"Профиль из прокатной стали со сваркой и оцинковкой в штангах, совместим с застенными модулями","Стальная профильная труба замкнутого сечения для возведения несущих стеновых конструкций и монтажа застенных модулей для подвесной сантехники и сантехнической арматуры. Толщинга стенки профиля не менее 1 мм. Оцинкованный. Должен быть одного производителя и одной системы с застенными модулями для подвесной сантехники и монтажными элементами для установки сантехнической арматуры.","Материал для застройки рабочего места",22.5,"м.пог. (на 1 раб.место)",112.5]
[23,"Соединение угловое, совместимо с профилем из прокатной стали","Соединение угловое для соединения двух отрезков стальной профильной трубы под прямым углом и крепленния застенных модулей для подвесной сантехники. Должен быть одного производителя и одной системы со стальной профильной трубой, застенными модулями для подвесной сантехники и монтажными элементами для установки сантехнической арматуры.","Материал для застройки рабочего места",40,"шт (на 1 раб.место)",200]
[24,"Крепление одинарное, совместимо с профилем из прокатной стали","Монтажный элемент для крепления стальной профильной трубы к несущей стене. Изготовлен из оцинкованной стали. В комплекте должны быть крепежные элементы (дюбель, болт) для крепления к несущей стене.  Должен быть одного производителя и одной системы со стальной профильной трубой, застенными модулями для подвесной сантехники и монтажными элементами для установки сантехнической арматуры.","Материал для застройки рабочего места",20,"шт (на 1 раб.место)",100]
[25,"Фанера 2440*1250*18 шлифованную сорт 2/2 березовая (для застройки стенда рабочего места)","ГОСТ 3916.1-18 \nМарка: ФСФ\nПорода: березовая\nТолщина листа: 18 мм\nРазмеры листа: 2500x1250 мм\nТип: влагостойкая\nСорт: 2/2\nШлифовка: шлифованная (Ш2)","Материал для застройки рабочего места",9,"шт (на 1 раб.место)",45]
[26,"Брус 100*50*3000 шлифованный","Брус Д*Ш*В  мм  3000*100*50 Шлифованный","Материал для застройки рабочего места",30,"шт (на 1 раб.место)",150]
[27,"Саморез по дереву (гкд / сгд) 3,5х41мм черный (фасовка по 1кг) редкий шаг резьбы (кнр)","Размер 3,5х41 мм черный редкий шаг резьбы ","Материал для застройки рабочего места",1,"кг. (на 1 раб.место)",5]
[28,"Саморез по дереву (гкд / сгд) 3,5х55(57)мм черный (фасовка по 1кг) редкий шаг резьбы (кнр)","Размер 3,5х55 мм черный редкий шаг резьбы ","Материал для застройки рабочего места",5,"кг. (на 1 раб.место)",25]
[29,"Саморез по дереву (гкд / сгд) 4,8х 89(90)мм черный (фасовка по 1кг) редкий шаг резьбы (кнр)","Размер 4,8х 89 мм черный редкий шаг резьбы ","Материал для застройки рабочего места",5,"кг. (на 1 раб.место)",25]
[30,"Крепежный уголок соеденительный 50х 50х35/2,5мм (ku)(ukl-1)","Размер 50х 50х35/2,5мм ","Материал для застройки рабочего места",10,"шт (на 1 раб.место)",50]
[31,"Крепежный уголок соеденительный 90х90х65/2,5мм (ku)(ukl-3)","Размер 90х90х65/2,5мм","Материал для застройки рабочего места",10,"шт (на 1 раб.место)",50]
[32,"Эмаль по дереву акриловая ВД-АК-1179(белая)","Тип покрытия: Полуглянцевое\nПрименение Универсальный (для наружных и внутренних работ) и другие.\nРасход: не менее 10 м2 в 1 слой  \nПодходит для: Универсальный (бетон, металл, дерево и др.) и т.д.","Материал для застройки рабочего места",4,"кг. (на 1 раб.место)",20]
[33,"Клейкая сигнальная лента 50ммx33м красно-белая PVC ","Ширина, мм 50\nДлина, м не менее 33\nЦвет бело-красный\nТип клейкая лента","Материал для застройки рабочего места",1,"шт (на 1 раб.место)",5]
[34,"Шуруп по дереву с  головкой, DIN 571, 6*30","Размер, мм 6*30\nГОСТ 11473.","Материал для застройки рабочего места",1,"кг. (на 1 раб.место)",5]
[35,"Шпатлевка акриловая по дереву","Цвет:сосна\nПалитра:коричневый\nВлагостойкость:есть\nПрименение:внутри помещения\nMin толщина слоя:1 мм","Материал для застройки рабочего места",1,"кг. (на 1 раб.место)",5]
[36,"Ящик пластмассовый для хранения (60 литров)","Габариты без упаковки:600х400х400 мм\nВес нетто:3 кг\nОбъем:60 л\nЦвет:черный\nПерфорированный:нет\nКрышка:нет\nРучка:есть","Хоз. Инвентарь",1,"шт (на 1 раб.место)",5]
[37,"Часы настенные","Материал корпуса:пластик\nЦвет корпуса:черный\nЦвет циферблата:черный\nВысота:102 мм\nШирина:220 мм\nТолщина:37 мм","Хоз. Инвентарь",1,"шт (на 1 раб.место)",5]
["Охрана труда и техника безопасности"]
["№","Наименование ","Краткие (рамочные) технические характеристики","Вид","Количество","Единица измерения","Итоговое количество","Рекомендации представителей индустрии (указывается конкретное оборудование)"]
[1,"Спецодежда от общих производственных загрязнений ","Брюки+куртка, полукомбинезон+куртка, комбинезон ","СИЗ",1,"комплект (на 1 раб.место)",{"$f":"E67*$C$13","v":5},"ЛИК"]
[2,"Обувь с металлическимим или композитными вставками ","Сандали, полуботинки, ботинки ","СИЗ",1,"пара (на 1 раб.место)",{"$f":"E68*$C$13","v":5},"ЛИК"]
[3,"Очки защитные открытые","Цвет линзы: прозрачный\nОптический класс: №1 (не дает искажений, не имеет ограничений по длительности ношения)\nМатериал линзы: поликарбонат\nМатериал оправы: PC (поликарбонат) / BT (Полибутилентерефталат) / TPE (термоэластопласт)\nЗащита: от механических воздействий, УФ-излучения\nПокрытие: против царапин и запотевания ","СИЗ",1,"шт (на 1 раб.место)",5,"ЛИК"]
[4,"Перчатки трикотажные для защиты от механических рисков (для точных работ)","Для защиты от механических рисков (для точных работ)","СИЗ",5,"пара (на 1 раб.место)",25,"ЛИК"]
[5,"Верхняя одежда с длинным рукавом","Куртка с длинными рукавами с застёгивающимися или притачными манжетами на резинке ","СИЗ",1,"шт (на 1 раб.место)",{"$f":"E71*$C$13","v":5},"ЛИК"]
[6,"Хлопчатобумажные перчатки без ПВХ покрытия","Перчатки без ПВХ покрытия используют на производствах и предприятиях, где предусмотрена работа с высокими температурами.","СИЗ",2,"шт (на 1 раб.место)",{"$f":"E72*$C$13","v":10},"ЛИК"]
["2. Зона для работ предусмотренных в Модуле Б вариативной Задаче № 4   (по количеству рабочих мест) "]
["Рабочее место Конкурсанта (дополнительное оборудование, инструмент для выполнения модуля (по количеству рабочих мест)"]
["Требования к обеспечению зоны (коммуникации, площадь, сети, количество рабочих мест и др.): "]
["Площадь зоны: не менее 12 кв.м."]
["Освещение: Верхнее искусственное освещение (300 люкс)"]
["Интернет : Подключение  ноутбуков к беспроводному интернету (с возможностью подключения к проводному интернету) \t"]
["Электричество: 3 подключения к сети  по (220 Вольт)\t"]
["Контур заземления для электропитания и сети слаботочных подключений (при необходимости) : не требуется"]
["Покрытие пола: фанерный подиум  - 12 м2 на всю зону"]
["Подведение/ отведение ГХВС (при необходимости) : не требуется"]
["Подведение сжатого воздуха (при необходимости): не требуется"]
["№","Наименование ","Краткие (рамочные) технические характеристики","Вид","Количество","Единица измерения","Итоговое количество","Рекомендации представителей индустрии (указывается конкретное оборудование)"]
[1,"Трубогиб для тонкостенных медных и стальных труб с комплектом гибочных сегментов с базовыми пластинами для закрепления в тисках 15-18-22мм, к-т в ящике","Набор представляет собой специализированный комплект универсальных приспособлений для ручной гибки труб. Устройство обеспечивает точную холодную гибку заготовок. Запатентованная АНТИБЛОКИРОВОЧНАЯ СИСТЕМА: прикладываемое усилие сокращается на 42%, благодаря высоким скользящим качествам башмака и оптимальному распределению спрея, Трубогиб может использоваться с разнообразными материалами: мягкой и твердой медью, тонкостенной медью, тонкостенной сталью, медью и тонкостенной сталью в оболочке, алюминием, латунью, а также бесшовной нержавеющей сталью. Тип привода: ручной (механический). Максимальный угол гиба, град: не менее 180. Максимальная толщина стенки трубы, мм: не менее 1. Гибка труб диаметром: 15, 18, 22 мм. Тип профиля: круг\nПоставляется в пластиковом чемодане из ABS пластика.\n","Инструмент",1,"шт (на 1 раб.место)",{"$f":"E85*$C$13","v":5}]
[2,"Телескопическиий труборез для медных труб 1/4“ – 1.3/8“ (6 – 35мм)","Труборез для труб из цветных металлов является профессиональным инструментом для резки металлических труб толщиной 6 - 35 мм. Корпус изготовлен из цинкового сплава и окрашен, благодаря чему устойчив к коррозии и имеет долгий срок службы. С помощью винта, находящегося в верхней части приспособления, можно регулировать режущее усилие. Выдвижной нож-скребок предназначен для удаления стружки и заусенцев с обрабатываемой поверхности. В комплекте запасной режущий ролик. Минимальный диаметр отрезаемой трубы: не менее 6 мм, Максимальный диаметр отрезаемой трубы: не более 35 мм","Инструмент",1,"шт (на 1 раб.место)",{"$f":"E86*$C$13","v":5}]
[3,"Фаскосниматель: внутри и снаружи, 3 реж.кромки, пластм.корпус","Универсальный фаскосниматель для труб из меди имеющих диаметр от 4 до 35 мм (1/8“–1.3/8“ дюйма) имеет вес 30 грамм и может легко снимать любую фаску.","Инструмент",1,"шт (на 1 раб.место)",{"$f":"E87*$C$13","v":5}]
["Охрана труда и техника безопасности (дополнительно)"]
["№","Наименование ","Краткие (рамочные) технические характеристики","Вид","Количество","Единица измерения","Итоговое количество","Рекомендации представителей индустрии (указывается конкретное оборудование)"]
[1,"Не требуется",null,"СИЗ",null,"шт (на 1 раб.место)",{"$f":"E90*$C$13","v":0}]

{"sheet":"Расходные материалы","index":3,"n_rows":133,"n_cols":8,"rows_kept":133,"merged":[[0,0,0,7],[1,0,1,7],[2,0,2,7],[3,0,3,7],[4,0,4,7],[5,0,5,7],[6,0,6,1],[6,2,6,7],[7,0,7,2],[7,3,7,7],[8,0,8,1],[8,2,8,7],[9,0,9,1],[9,2,9,3],[9,4,9,5],[9,6,9,7],[10,0,10,1],[10,2,10,3],[10,4,10,5],[10,6,10,7],[11,0,11,1],[11,2,11,7],[12,0,12,1],[12,2,12,7],[13,0,13,1],[13,2,13,7],[14,0,14,1],[14,2,14,7],[15,0,15,7],[16,0,16,7],[99,0,99,7],[102,0,102,7],[103,0,103,7],[111,0,111,7],[114,0,114,7]]}
[]
["Инфраструктурный лист для оснащения конкурсной площадки"]
[{"$f":"'Информация о Чемпионате'!B4","v":"Региональный этап Чемпионата по профессиональному мастерству «Профессионалы» в 2026г."}]
["по компетенции"]
[{"$f":"'Информация о Чемпионате'!B3","v":"Сантехника и отопление (юниоры)"}]
["Основная информация о конкурсной площадке:"]
["Субъект Российской Федерации:",null,{"$f":"'Информация о Чемпионате'!B5","v":"Красноярский край"}]
["Базовая организация расположения конкурсной площадки:",null,null,{"$f":"'Информация о Чемпионате'!B6","v":"КГБПОУ «Канский политехнический колледж»"}]
["Адрес базовой организации: ",null,{"$f":"'Информация о Чемпионате'!B7","v":"663605 Красноярский край, г.Канск, ул.Красноярская, д.26, строен.1, М 1"}]
["Главный эксперт: ",null,{"$f":"'Информация о Чемпионате'!B9","v":"Зорин Вячеслав Николаевич"},null,{"$f":"'Информация о Чемпионате'!B10","v":"zo-vn@yandex.ru"},null,{"$f":"'Информация о Чемпионате'!B11","v":"8-913-563-63-08"}]
["Технический администратор площадки: ",null,{"$f":"'Информация о Чемпионате'!B12","v":"Савоськин Артем Викторович"},null,{"$f":"'Информация о Чемпионате'!B13","v":"artemwc@mail.ru"},null,{"$f":"'Информация о Чемпионате'!B14","v":"8-902-980-01-94"}]
["Количество экспертов (ЭН+ГЭ+ИЭ) + ТАП: ",null,{"$f":"'Информация о Чемпионате'!B17","v":8}]
["Количество конкурсантов (команд): ",null,{"$f":"'Информация о Чемпионате'!B15","v":5}]
["Количество рабочих мест: ",null,{"$f":"'Информация о Чемпионате'!B15","v":5}]
["Даты проведения: ",null,{"$f":"'Информация о Чемпионате'!B8","v":"10.02.2026-14.02.2026"}]
["1. Зона для работ предусмотренных в Модулях А, Б, В. Задачи 1, 2, 3, 5 обязательных к выполнению (инвариант)  \n (по количеству рабочих мест) "]
["Рабочее место Конкурсанта (расходные материалы по количеству конкурсантов)"]
["№","Наименование ","Краткие (рамочные) технические характеристики","Вид","Количество","Единица измерения","Итоговое количество","Рекомендации представителей индустрии (указывается конкретное оборудование)"]
[1,"Застенный модуль для установки унитаза (h=1120), совместимо с профилем из прокатной стали ","Застенный модуль для установки подвесного унитаза. Должен иметь возможность фиксации к несущим конструкциям или к стальной профильной трубе. Ширина застенного модуля должна составлять 500 мм. Конструкция опор модуля должна обеспечивать возможность быстрого крепления к стальной профильной трубе с помощью зажимов без применения каких-либо инструментов. Конструкция модуля должна обеспечивать возможность монтажа подвесных унитазов с межцентровым расстоянием отверстий для монтажа 180 и 230 мм. Сливной клапан бачка должен иметь два режима (объема) смыва с возможностью регулирования объема смываемой воды. Сливной клапан должен иметь механическую систему привода смыва. В комплекте поставки должны быть все необходимые монтажные и переходные элементы для присоединения к системе канализации DN110. Должен быть одного производителя и одной системы со стальной профильной трубой и монтажными элементами для установки сантехнической арматуры.","Расходные материалы",1,"шт (на 1 конкурсанта) ",{"$f":"E19*$C$13","v":5}]
[2,"Застенный модуль для раковины (h=1120), совместимо с профилем из прокатной стали ","Застенный модуль для установки подвесного унитаза. Должен иметь возможность фиксации к несущим конструкциям или к стальной профильной трубе. Ширина застенного модуля должна составлять 500 мм. Конструкция опор модуля должна обеспечивать возможность быстрого крепления к стальной профильной трубе с помощью зажимов без применения каких-либо инструментовКомплектация модуля в сборе:\nНезависимая монтажная рама, порошковое покрытие\nДве крепежные шпильки M 10, с регулировкой по горизонтали и вертикали\nЗвукоизолированная монтажная пластина для крепления настенных уголков\nСоединительный отвод DN 40/50 с резиновой муфтой, NW 30/50 (также используется в качестве уплотнения) с защитной заглушкой","Расходные материалы",1,"шт (на 1 конкурсанта) ",5]
[3,"Телескопическое крепление для модуля (Того же производителя, что и застенный модуль)","Предназначен для установки в систему стального профиля\nКомплектация\n2 опоры;\nкомплект фиксирующих элементов.","Расходные материалы",2,"компл (на 1 конкурсанта)",{"$f":"E21*$C$13","v":10}]
[4,"Профиль из прокатной стали оцинкованный, в штангах,  совместим с застенными модулями","Стальная профильная труба замкнутого сечения.\nМатериал: Сталь, оцинкованное покрытие. \nПрименяется для возведения несущих стеновых конструкций и монтажа застенных модулей подвесной сантехники и сантехнической арматуры. \nДолжен быть одного производителя и одной системы с застенными модулями для подвесной сантехники и монтажными элементами для установки сантехнической арматуры.\nТолщинга стенки профиля не менее 1 мм. ","Расходные материалы",4.5,"м/пог (на 1 конкурсанта)",{"$f":"E22*$C$13","v":22.5}]
[5,"Соединение угловое, совместимо с профилем из прокатной стали","Соединение угловое для соединения двух отрезков стальной профильной трубы под прямым углом и крепленния застенных модулей для подвесной сантехники. Должен быть одного производителя и одной системы со стальной профильной трубой, застенными модулями для подвесной сантехники и монтажными элементами для установки сантехнической арматуры.","Расходные материалы",10,"шт (на 1 конкурсанта) ",{"$f":"E23*$C$13","v":50}]
[6,"Монтажная пластина для монтажа скрытых и внешних фитингов (Того же производителя, что и профиль из прокатной стали)","Монтажная пластина из оцинкованной стали для монтажа скрытых и внешних фитингов; в комплекте с крепежными элементами для монтажа профилей TECEprofil, а также монтажа в металлических или деревянных каркасных стенах.","Расходные материалы",1,"шт (на 1 конкурсанта) ",{"$f":"E24*$C$13","v":5}]
[7,"Тройник канализационный  Ø 110х50 мм, 87°","Параметры: Ø 110х50, 87°\nТип: Трубы и фасонные части для внутренней канализации\nМаксимальная рабочая температура: +95°С\nМатериал: Полипропилен\nГОСТ: 32414-2013","Расходные материалы",1,"шт (на 1 конкурсанта) ",5]
[8,"Тройник канализационный  Ø 110х110 мм, 87°","Параметры: Ø 110х110, 87°\nТип: Трубы и фасонные части для внутренней канализации\nМаксимальная рабочая температура: +95°С\nМатериал: Полипропилен\nГОСТ: 32414-2013","Расходные материалы",1,"шт (на 1 конкурсанта) ",5]
[9,"Труба с раструбом канализационная Ø 110, 1000 мм","Параметры: Ø 110 Длина 1000мм\nТип: Трубы и фасонные части для внутренней канализации\nМаксимальная рабочая температура: +95°С\nМатериал: Полипропилен\nГОСТ: 32414-2013","Расходные материалы",2,"шт (на 1 конкурсанта) ",10]
[10,"Труба с раструбом канализационная Ø 110, 500 мм","Параметры: Ø 110 Длина 500мм\nТип: Трубы и фасонные части для внутренней канализации\nМаксимальная рабочая температура: +95°С\nМатериал: Полипропилен\nГОСТ: 32414-2013","Расходные материалы",2,"шт (на 1 конкурсанта) ",10]
[11,"Труба с раструбом канализационная  Ø 50, 250 мм"," Параметры: Ø 50 Длина 2000мм\nТип: Трубы и фасонные части для внутренней канализации\nМаксимальная рабочая температура: +95°С\nМатериал: Полипропилен\nГОСТ: 32414-2013","Расходные материалы",3,"шт (на 1 конкурсанта) ",15]
[12,"Труба с раструбом канализационная  Ø 50, 500 мм","Параметры: Ø 50 Длина 500мм\nТип: Трубы и фасонные части для внутренней канализации\nМаксимальная рабочая температура: +95°С\nМатериал: Полипропилен\nГОСТ: 32414-2013","Расходные материалы",3,"шт (на 1 конкурсанта) ",15]
[13,"Ревизия канализационная Ø 110 мм","Параметры:  110Ø\nТип: Трубы и фасонные части для внутренней канализации\nМаксимальная рабочая температура: +95°С\nМатериал: Полипропилен\nГОСТ: 32414-2013","Расходные материалы",1,"шт (на 1 конкурсанта) ",5]
[14,"Компенсационный патрубок для канализации Ø 110 мм","Параметры: 110Ø\nТип: Трубы и фасонные части для внутренней канализации\nМаксимальная рабочая температура: +95°С\nМатериал: Полипропилен\nГОСТ: 32414-2013","Расходные материалы",1,"шт (на 1 конкурсанта) ",5]
[15,"Отвод канализационный Ø 50 мм, 45°","Параметры:  Ø 50, 45°\nТип: Трубы и фасонные части для внутренней канализации\nМаксимальная рабочая температура: +95°С\nМатериал: Полипропилен\nГОСТ: 32414-2013","Расходные материалы",4,"шт (на 1 конкурсанта) ",20]
[16,"Отвод канализационный Ø 50 мм, 87°","Параметры: 50, 87°\nТип: Трубы и фасонные части для внутренней канализации\nМаксимальная рабочая температура: +95°С\nМатериал: Полипропилен\nГОСТ: 32414-2013","Расходные материалы",1,"шт (на 1 конкурсанта) ",5]
[17,"Смазка сантехническая силиконовая 250 мл.","силиконовая основа","Расходные материалы",1,"шт (на 1 конкурсанта) ",{"$f":"E35*$C$13","v":5}]
[18,"Хомут металлический с гайкой М8/10 и резиновым профилем (48-52мм) 2-х винт. с уплотн. Epdm"," Д 32/40/50 М10\nПродукт клипса с защелкой\nНазначение для канализационных труб\nОбласть применения бытовая, для общественных мест\nЦвет серый\nВысота 5\nВес 0.12\nМатериал полипропилен\nБесшумная да\nРазмеры D=32/40/50мм М10","Расходные материалы",6,"шт (на 1 конкурсанта) ",{"$f":"E36*$C$13","v":30}]
[19,"Хомут металлический с гайкой М8/10 и резиновым профилем (110-115мм) 2-х винт. с уплотн. Epdm","Д 75/90/110 М10\nПродукт клипса с защелкой\nНазначение для канализационных труб\nОбласть применения бытовая, для общественных мест\nЦвет серый\nВысота 5\nВес 0.12\nМатериал полипропилен\nБесшумная да\nРазмеры D=75/90/110мм М10","Расходные материалы",4,"шт (на 1 конкурсанта) ",{"$f":"E37*$C$13","v":20}]
[20,"Шпилька резьбовая М10 (1м)","согласно DIN 976-1\nматериал: сталь, класс прочности 4.8\nоцинковка: электролитическая.  Длинна 1 м.","Расходные материалы",2,"шт (на 1 конкурсанта) ",{"$f":"E38*$C$13","v":10}]
[21,"Установочный элемент для крепления резьбовых шпилек M10 совместим с профилем","Установочный элемент предназначен для крепления резьбовых шпилек. \nКрепеж изготовлен из оцинкованной стали.","Расходные материалы",5,"шт (на 1 конкурсанта) ",{"$f":"E39*$C$13","v":25}]
[22,"Подпятник М8/М10 ","для удобства монтажа крепежные отверстия размещены под углом 90°\nс 4-х кратно приваренной соединительной гайкой М8/М10\nматериал: сталь\nоцинковка: электролитическая","Расходные материалы",5,"шт (на 1 конкурсанта) ",{"$f":"E40*$C$13","v":25}]
[23,"Саморезы конструкционные (шурупы) Rusconnect","Шуруп Rusconnect CT 06030 с/нарез. д/дерева, прессшайба 6х30.\nНаконечник острый\nШлиц Torx (T, Tx)\nПокрытие желтопассивированный\nДиаметр, мм 6\nФорма головки плоская пресс-шайба\nДлина, мм 30\nМатериал закаленная сталь","Расходные материалы",10,"шт (на 1 конкурсанта) ",50]
[24,"Труба металлополимерная PE-X/Al/PE-X Ø20×2,9","Параметры:\nНаружный диаметр, мм 20\nТолщина стенки, мм 2,9\nТруба многослойная металлополимерная\nМатериал PE-X/Al/PE-X\nМакс. рабочее давление, бар 10\nМакс. рабочая температура, °С 95\nСпособ соединения: с использованием механического пресс-инструмента для монтажа аксиальных фитингов (с надвижной гильзой)","Расходные материалы",5,"м/пог (на 1 конкурсанта)",{"$f":"E42*$C$13","v":25}]
[25,"Труба металлополимерная PE-X/Al/PE-X Ø25×3,7","Параметры:\nНаружный диаметр, мм 25\nТолщина стенки, мм 3,7\nТруба многослойная металлополимерная\nМатериал PE-X/Al/PE-X\nМакс. рабочее давление, бар 10\nМакс. рабочая температура, °С 95\nСпособ соединения: с использованием механического пресс-инструмента для монтажа аксиальных фитингов (с надвижной гильзой)","Расходные материалы",5,"м/пог (на 1 конкурсанта)",25]
[26,"Тройник 90° редукционный 25 × 20 × 25, латунь, аксиальный фитинг","Тройник для аксиальной запрессовки трубы PE-Xc/Al/PE-RT II Ø25×3,7\nТип Тройник\nМатериал Латунь CW617N\nМакс. рабочее давление, бар 10\nМакс. рабочая температура, °С 95\nГарантия, лет 10\nПодключение 1, мм 25\nПодключение 3, мм 25\nРедукция переходной","Расходные материалы",3,"шт (на 1 конкурсанта) ",15]
[27,"Муфта 20х1/2\" НР, латунь,  аксиальный фитинг","Нипель для аксиальной запрессовки трубы Triplex PE-Xc/Al/PE-RT II Ø20×2,9\nТип Переходник на резьбу\nМатериал Латунь CW617N\nМакс. рабочее давление, бар 10\nМакс. рабочая температура, °С 95\nПодключение 2, дюйм 1/2\nТип резьбы 2 Наружняя\nГарантия, лет 10\nПодключение 1, мм 20","Расходные материалы",3,"шт (на 1 конкурсанта) ",{"$f":"E45*$C$13","v":15}]
[28,"Муфта, 25×3/4\" НР, латунь, аксиальный фитинг","Муфта для аксиальной запрессовки трубы PE-Xc/Al/PE-RT II Ø25×3,7\nТип Переходник на резьбу\nМатериал Латунь CW617N\nМакс. рабочее давление, бар 10\nМакс. рабочая температура, °С 95\nПодключение 2, дюйм 3/4\nТип резьбы 2 Наружная\nГарантия, лет 10\nПодключение 1, мм 25","Расходные материалы",2,"шт (на 1 конкурсанта) ",10]
[29,"Гильза монтажная, Ø 20","Гильза для аксиальной запрессовки трубы PE-Xc/Al/PE-RT II Ø20×2,9\nТип Гильза монтажная\nМатериал Полимер\nМакс. рабочее давление, бар 10\nМакс. рабочая температура, °С 95\nГарантия, лет 10\nПодключение 1, мм 20\nРедукция прямой","Расходные материалы",6,"шт (на 1 конкурсанта) ",{"$f":"E47*$C$13","v":30}]
[30,"Гильза монтажная, Ø 25","Гильза для аксиальной запрессовки трубы PE-Xc/Al/PE-Xc II Ø25×3,7\nТип Гильза монтажная\nМакс. рабочее давление, бар 10\nМакс. рабочая температура, °С 95\nГарантия, лет 10\nПодключение 1, мм 25\nРедукция прямой","Расходные материалы",8,"шт (на 1 конкурсанта) ",{"$f":"E48*$C$13","v":40}]
[31,"Заглушка 3/4” ВР","Заглушка с внутренней резьбой 3/4”ВР\nПрименение Для отопления/Для водоснабжения\nМатериал корпуса Латунь\nМакс. рабочая температура, °С 100\nВес, кг 0,043","Расходные материалы",1,"шт (на 1 конкурсанта) ",5]
[32,"Заглушка  3/4”НР","Заглушка с наружной резьбой  3/4”НР\nПрименение Для отопления/Для водоснабжения\nМатериал корпуса Латунь\nМакс. рабочая температура, °С 100\nВес, кг 0,043","Расходные материалы",1,"шт (на 1 конкурсанта) ",{"$f":"E50*$C$13","v":5}]
[33,"Счетчик воды Ду 15 Н 3/4\" L=80 для холодной воды","Н 3/4\" L=80\nТип счетчик холодной воды \nОбласть применения учет потребления ресурсов холодной воды в трубопроводе \nМаксимальная температура воды 30 оС \nДиаметр условного прохода (ДУ) 15 мм Расход 1,5 куб. м/час \nПереходной расход 120 л/час \nМинимальный расход 30 л/час \nПорог чувствительности 10 л/час \nМонтажная длина 80 мм \nПрисоединительный размер 3/4\" \nАнтимагнитная защита да \nУстойчивость к магнитному полю 140 кА/м \nМетрологический класс ГОСТ Р 50193.1 (DIN ISO 4064/1) \nУстановка горизонтальная и вертикальная \nПогрешность в пределах 5% \nРабочее давление 1 МПа \nИмпульсный выход для дистанционного считывания 10 л/имп.; не более 100 мА; около 0,6 сек \nВес 0,5 кг","Расходные материалы",1,"шт (на 1 конкурсанта) ",5]
[34,"Счетчик воды Ду 15 Н 3/4\" L=80 для горячей воды","Н 3/4\" L=80\nКатегория контрольно-измерительные приборы \nТип счетчик горячей воды \nОбласть применения учет потребления ресурсов горячей воды в трубопроводе \nМаксимальная температура воды 90 оС \nДиаметр условного прохода (ДУ) 15 мм \nРасход 1,5 куб. м/час \nПереходной расход 120-150 л/час \nМинимальный расход 30-60 л/час \nПорог чувствительности 10-20 л/час \nМонтажная длина 80 мм \nПрисоединительный размер 3/4\" \nАнтимагнитная защита да \nУстойчивость к магнитному полю 140 кА/м \nМетрологический класс ГОСТ Р 50193.1 (DIN ISO 4064/1) \nУстановка горизонтальная и вертикальная \nПогрешность в пределах 5% \nРабочее давление 1 МПа \nИмпульсный выход для дистанционного считывания 10 л/имп.; не более 100 мА; около 0,6 сек \nВес 0,5 кг","Расходные материалы",1,"шт (на 1 конкурсанта) ",5]
[35,"Комплект разъемных соединений для счетчика воды (2 шт) 3/4\"х1/2\"","3/4\"х1/2\"\nКатегория аксессуары для счетчиков воды \nТип комплект разъемных соединений \nОбласть применения монтаж счетчиков воды на трубопровод \nРезьба внутренняя (накидная гайка) / наружная \nПрисоединительный размер 3/4\" х 1/2\" \nМатериал корпуса латунь \nМатериал резьбы латунь \nДиаметр условного прохода 15 мм \nМонтажная длина 80/110 мм \nВес 150 г","Расходные материалы",2,"компл (на 1 конкурсанта)",10]
[36,"Кран шаровой полнопроходной 1/2\" ВВ","1/2\" ВР х 1/2\" НР\nМатериал\tлатунь никелированная\nТип фитинга\tкран шаровый\nТип резьбы\tвнутренняя/наружная\nОтвод 1, труба/резьба\t1/2\"\nОтвод 2, труба/резьба\t1/2\"\nТип ручки\tбабочка\nЦвет ручки\tкрасный","Расходные материалы",2,"шт (на 1 конкурсанта) ",10]
[37,"Кран шаровой полнопроходной 1/2\" НВ","1/2\" ВР х 1/2\" НР\nМатериал\tлатунь никелированная\nТип фитинга\tкран шаровый\nТип резьбы\tвнутренняя/наружная\nОтвод 1, труба/резьба\t1/2\"\nОтвод 2, труба/резьба\t1/2\"\nТип ручки\tбабочка\nЦвет ручки\tкрасный","Расходные материалы",2,"шт (на 1 конкурсанта) ",{"$f":"E55*$C$13","v":10}]
[38,"Косой фильтр грубой очистки 1/2\" ВВ","1/2\" ВР\nМатериал\tлатунь\nТип фитинга\tКосой фильтр грубой очистки\nВысота, мм\t12\nОтвод 1, труба/резьба\t1/2\"\nОтвод 2, труба/резьба\t1/2\"\nВес, кг\t0.136","Расходные материалы",2,"шт (на 1 конкурсанта) ",10]
[39,"Тройник равнопроходной 1/2\"х1/2\"х1/2\" ВВВ","1/2\" ВР\nМатериал\tлатунь\nТип фитинга\tТройник равнопроходной\nДлина, мм\t27\nШирина, мм\t54\nВысота, мм\t12\nОтвод 1, труба/резьба\t1/2\"\nОтвод 2, труба/резьба\t1/2\"\nОтвод 3, труба/резьба\t1/2\"\nВес, кг\t0.08","Расходные материалы",2,"шт (на 1 конкурсанта) ",10]
[40,"Ниппель 1/2\" НН","1/2\" НР\nМатериал\tлатунь\nТип фитинга\tНиппель\nДлина, мм\t33\nШирина, мм\t12\nВысота, мм\t12\nОтвод 1, труба/резьба\t1/2\"\nОтвод 2, труба/резьба\t1/2\"\nВес, кг\t0.035","Расходные материалы",3,"шт (на 1 конкурсанта) ",15]
[41,"Муфта переходная 3/4\"х1/2\" ВВ","3/4 ВР х 1/2ВР\nМакс. рабочее давление, бар\t16\nРабочая среда\tВода, водный раствор гликоля до 30%\nДиапазон рабочей температуры, °С\t-30...+120\nМатериал\tЛатунь жёлтая\nРезьба\tНР-ВР\nСоединение\tРезьба","Расходные материалы",1,"шт (на 1 конкурсанта) ",5]
[42,"Муфта переходная (футорка) 1/2\"х1/4\" НВ","1/2\"х1/4\" НВ\nМакс. рабочее давление, бар\t16\nРабочая среда\tВода, водный раствор гликоля до 30%\nДиапазон рабочей температуры, °С\t-30...+120\nМатериал\tЛатунь жёлтая\nРезьба\tНР-ВР\nСоединение\tРезьба","Расходные материалы",2,"шт (на 1 конкурсанта) ",10]
[43,"Манометр аксиальный 1/4\"НР,  6 бар","Диаметр корпуса 63мм Резьбовое подключение 1/4\"","Расходные материалы",2,"шт (на 1 конкурсанта) ",{"$f":"E61*$C$13","v":10}]
[44,"Коллектор универсальный с запорными вентилями, латунь 3/4\", 3 контура 3/4\" Ek (евроконус)","Д 3/4\" Ek × 3 контура\nМатериал\tлатунь\nТип фитинга\tколлектор с запорными вентилями\nКоличество выходов коллектора\t3\nОтвод 1, труба/резьба\t3/4\"\nОтвод 2, труба/резьба\t3/4\" EK\nВес, кг\t0.5","Расходные материалы",1,"шт (на 1 конкурсанта) ",{"$f":"E62*$C$13","v":5}]
[45,"Соединитель (концовка) для металлопластиковых труб PE-X/Al/PE-X, 16х2,0,  3/4 Ek(евроконус)","Соединитель (концовка)  3/4 Ek(евроконус), для металлопластиковых труб PE-X/Al/PE-X,  16х2,0","Расходные материалы",3,"шт (на 1 конкурсанта) ",{"$f":"E63*$C$13","v":15}]
[46,"Металлопластиковая (металлополимерная) труба PE-X/AL/PE-X 16 х 2,0 мм","Металлопластиковая (металлополимерная) труба PE-X/AL/PE-X 16 х 2,0 мм","Расходные материалы",10,"м/пог (на 1 конкурсанта)",50]
[47,"Угол пресс 16х1/2\"НР","Угол пресс 16х1/2\"НР , для металлопластиковой трубы PE-X/AL/PE-X, радиальная запрессовка (Того же производителя, что и труба)","Расходные материалы",1,"шт (на 1 конкурсанта) ",{"$f":"E65*$C$13","v":5}]
[48,"Муфта пресс 16х16","Муфта пресс 16х16 для металлопластиковой трубы PE-X/AL/PE-X, радиальная запрессовка (Того же производителя, что и труба)","Расходные материалы",1,"шт (на 1 конкурсанта) ",{"$f":"E66*$C$13","v":5}]
[49,"Муфта пресс 16х1/2\"НР","Муфта пресс 16х1/2\"НР для металлопластиковой трубы PE-X/AL/PE-X, радиальная запрессовка (Того же производителя, что и труба)","Расходные материалы",1,"шт (на 1 конкурсанта) ",5]
[50,"Тройник пресс 16 × 16 × 16","Тройник пресс 16 × 16 × 16 для металлопластиковой трубы PE-X/AL/PE-X, радиальная запрессовка (Того же производителя, что и труба)","Расходные материалы",1,"шт (на 1 конкурсанта) ",{"$f":"E68*$C$13","v":5}]
[51,"Водорозетка пресс 16x1/2\"ВР","Водорозетка пресс 16x1/2\"ВР, для металлопластиковой трубы PE-X/AL/PE-X, радиальная запрессовка (Того же производителя, что и труба)","Расходные материалы",2,"шт (на 1 конкурсанта) ",{"$f":"E69*$C$13","v":10}]
[52,"Водорозетка пресс 16x1/2\"ВР, удлиненная (78 мм)","Водорозетка пресс 16x1/2\"ВР, удлиненная (78 мм) для металлопластиковой трубы PE-X/AL/PE-X, радиальная запрессовка (Того же производителя, что и труба)","Расходные материалы",2,"шт (на 1 конкурсанта) ",10]
[53,"Вентиль (кран) угловой 1/2”НР х 1/2”НР","Вентиль (кран) угловой для подключения сантехнических приборов, латунь, хромированный 1/2”НР х 1/2”НР","Расходные материалы",2,"шт (на 1 конкурсанта) ",10]
[54,"Заглушка 1/2\" НР, пластик","Заглушка 1/2\" НР, пластиковая, для проведения гидравлических/ пневматических испытаний системы","Расходные материалы",2,"шт (на 1 конкурсанта) ",10]
[55,"Труба PPRc PN25, SDR 6, белая, Ø20мм","Труба PPRc PN25, SDR 6, армированная стекловолокном, белая, Ø20мм","Расходные материалы",2,"м/пог (на 1 конкурсанта)",{"$f":"E73*$C$13","v":10}]
[56,"Труба PPRc PN25, SDR 6, белая, Ø25мм","Труба PPRc PN25, SDR 6, армированная стекловолокном, белая, Ø25мм","Расходные материалы",4,"м/пог (на 1 конкурсанта)",{"$f":"E74*$C$13","v":20}]
[57,"Тройник PPRc Ø25х20х25","Тройник PPRc Ø25х20х25\nПрименяется для соединения труб из полипропилена (PPRc) методом раструбной сварки.\n(Того же производителя, что и труба)","Расходные материалы",1,"шт (на 1 конкурсанта) ",{"$f":"E75*$C$13","v":5}]
[58,"Уголок PPRc Ø20  90°","Угольник PPRc 90°, внутр/внутр, Ø20\nПрименяется для соединения труб из полипропилена (PPRc) методом раструбной сварки.\n(Того же производителя, что и труба)","Расходные материалы",2,"шт (на 1 конкурсанта) ",10]
[59,"Муфта PPRc Ø20","Муфта PPR Ø20\nПрименяется для соединения труб из полипропилена (PPRc) методом раструбной сварки.\n(Того же производителя, что и труба)","Расходные материалы",1,"шт (на 1 конкурсанта) ",5]
[60,"Муфта PPRc Ø25","Муфта PPR Ø25\nПрименяется для соединения труб из полипропилена (PPRc) методом раструбной сварки.\n(Того же производителя, что и труба)","Расходные материалы",1,"шт (на 1 конкурсанта) ",{"$f":"E78*$C$13","v":5}]
[61,"Муфта PPRc комбинированная 20х1/2 НР","Муфта PPRc комбинированная, с наружной резьбой 20х1/2 НР\nПрименяется для соединения труб из полипропилена (PPRc) методом раструбной сварки.\n(Того же производителя, что и труба)","Расходные материалы",1,"шт (на 1 конкурсанта) ",5]
[62,"Муфта PPRc комбинированная 25х3/4 НР","Муфта PPRc комбинированная, с наружной резьбой 25х3/4 НР\nПрименяется для соединения труб из полипропилена (PPRc) методом раструбной сварки.\n(Того же производителя, что и труба)","Расходные материалы",1,"шт (на 1 конкурсанта) ",{"$f":"E80*$C$13","v":5}]
[63,"Заглушка PPRc  Ø25","Заглушка PPR Ø20\nПрименяется для соединения труб из полипропилена (PPRc) методом раструбной сварки.\n(Того же производителя, что и труба)","Расходные материалы",1,"шт (на 1 конкурсанта) ",{"$f":"E81*$C$13","v":5}]
[64,"Хомут металлический с гайкой и резиновым профилем М8/М10 3/8\" (15-19 мм) 2-х винт. с уплотн. epdm","Используется для крепления труб к стенам (верт./горизонт.), к потолку, полу.\nEPDM профиль для:\nснижения уровня шума до 15 дБ в соответствии с DIN 4109;\nуменьшения вибрации;\nчастичной компенсации тепловых расширений;\nлегко и надежно собирается c помощью комбинированных винтов, расположенных по бокам;\nбоковые винты защищены от утери во время сборки посредством пластиковых шайб;\nгальванизирован для защиты от коррозии (гальванопокрытие толщиной 8–10 микрон).","Расходные материалы",15,"шт (на 1 конкурсанта) ",{"$f":"E82*$C$13","v":75}]
[65,"Хомут металлический с гайкой и резиновым профилем М8/М10 1/2\" (20-24 мм) 2-х винт. с уплотн. Epdm.","двухвинтовой хомут;\nмеханизм быстрого замка для лёгкого монтажа хомута одной рукой;\nдвухкомпонентный резиновый вкладыш обеспечивает легкое позиционирование трубы во время монтажа;\nпри закрытом хомуте труба лежит на вкладыше из мягкой черной резины, что увеличивает шумопоглощение;\nматериал: сталь;\nтермостойкость: -30 °C до +120 °C;\nшумопоглощающий вкладыш согласно DIN 4109;\nшумопоглощение согласно ISO 3822-1 до 23 дБ(А).","Расходные материалы",6,"шт (на 1 конкурсанта) ",30]
[66,"Хомут металлический с гайкой и резиновым профилем М8/М10  3/4\" (25-28 мм) 2-х винт. с уплотн. Epdm","Используется для крепления труб к стенам (верт./горизонт.), к потолку, полу.\nEPDM профиль для:\nснижения уровня шума до 15 дБ в соответствии с DIN 4109;\nуменьшения вибрации;\nчастичной компенсации тепловых расширений;\nлегко и надежно собирается c помощью комбинированных винтов, расположенных по бокам;\nбоковые винты защищены от утери во время сборки посредством пластиковых шайб;\nгальванизирован для защиты от коррозии (гальванопокрытие толщиной 8–10 микрон).","Расходные материалы",6,"шт (на 1 конкурсанта) ",30]
[67,"Шпилька резьбовая М10 (1м)","согласно DIN 976-1\nматериал: сталь, класс прочности 4.8\nоцинковка: электролитическая.  Длинна 1 м.","Расходные материалы",4,"шт (на 1 конкурсанта) ",20]
[68,"Установочный элемент для крепления резьбовых шпилек M10 совместим с профилем","Установочный элемент предназначен для крепления резьбовых шпилек. \nКрепеж изготовлен из оцинкованной стали.","Расходные материалы",22,"шт (на 1 конкурсанта) ",110]
[69,"Подпятник М8/М10 ","для удобства монтажа крепежные отверстия размещены под углом 90°\nс 4-х кратно приваренной соединительной гайкой М8/М10\nматериал: сталь\nоцинковка: электролитическая","Расходные материалы",5,"шт (на 1 конкурсанта) ",{"$f":"E87*$C$13","v":25}]
[70,"Саморезы конструкционные (шурупы) Rusconnect","Шуруп Rusconnect CT 06030 с/нарез. д/дерева, прессшайба 6х30.\nНаконечник острый\nШлиц Torx (T, Tx)\nПокрытие желтопассивированный\nДиаметр, мм 6\nФорма головки плоская пресс-шайба\nДлина, мм 30\nМатериал закаленная сталь","Расходные материалы",10,"шт (на 1 конкурсанта) ",50]
[71,"Уплотнительная нить 25м","Уплотнительная нить бокс, м-25, блистер 61010 - сантехническая уплотнительная нить для герметизации резьбовых соединений. Имеет плоское сечение, более 280 микронитей и улучшенную пропитку, разработанную Сантехмастер Групп. Подходит для срочного ремонта и монтажа. Применяется для резьб из любого материала.","Расходные материалы",2,"шт (на 1 конкурсанта) ",10]
[72,"Ниппель быстросъемный \"папа\" НР 1/2\" рапид-EURO","Быстросъемное соединение Euro-рапид  1/2\" НР для пневматических линий","Расходные материалы",4,"шт (на 1 конкурсанта) ",{"$f":"E90*$C$13","v":20}]
[73,"Муфта переходная (футорка)  3/4х1/2\" НВ","3/4 НР х 1/2ВР\nМакс. рабочее давление, бар\t16\nРабочая среда\tВода, водный раствор гликоля до 30%\nДиапазон рабочей температуры, °С\t-30...+120\nМатериал\tЛатунь жёлтая\nРезьба\tНР-ВР\nСоединение\tРезьба","Расходные материалы",2,"шт (на 1 конкурсанта) ",{"$f":"E91*$C$13","v":10}]
[74,"Кран шаровой 3/4\" полнопроходной, ВР/ВР, ручка бабочка","Максимальное рабочее давление, бар: 50\nВид арматуры: краны шаровые\nТип управления: ручка бабочка\nТип соединения: муфта/муфта\nМинимальная рабочая температура, С: -20\nМаксимальная рабочая температура, °С: 150\nПроход: полный","Расходные материалы",2,"шт (на 1 конкурсанта) ",{"$f":"E92*$C$13","v":10}]
[75,"Заглушка для опрессовки пластиковая 1/2\" AG","Тестовая заглушка\nОтвод 1, труба/резьба\t1/2\"\nВес, кг\t0.01","Расходные материалы",4,"шт (на 1 конкурсанта) ",20]
[76,"Пластиковая панель смыва для унитаза белая (Того же производителя, что и застенный модуль)","Панель смыва для смывных бачков TECE, фронтальное или верхнее расположение панели смыва. Пластиковая панель смыва, клавиши с резиновыми накладками с двух сторон. В комплект входят толкатели и крепежные элементы. Совместима с контейнером для гигиенических таблеток.","Расходные материалы",1,"шт (на 1 конкурсанта)",{"$f":"E94*$C$13","v":5}]
[77,"Керамика. Унитаз подвесной с сиденьем.","Сиденье и крышка унитаза с механизмом плавного закрытия для бачка скрытого монтажа, горизонтальный выпуск объем смыва 6/3 л санитарная керамика","Расходные материалы",1,"шт (на 1 конкурсанта) ",{"$f":"E95*$C$13","v":5}]
[78,"Смеситель однорычажный для раковины с донным клапаном","Смеситель однорычажный для раковины с донным клапаном\nмонтаж на одно отверстие; металлический рычаг;   керамический картридж 35 мм ; регулировка расхода воды с ограничителем температуры; хромированная поверхность ;  аэратор 3.8 л/мин ; быстрая монтажная система;  сливной гарнитур с донным клапаном 1 1/4\"; гибкая подводка","Расходные материалы",1,"шт (на 1 конкурсанта) ",{"$f":"E96*$C$13","v":5}]
[79,"Сифон для раковины 1 1/4\"","Сифон бутылочный для раковины 1 1/4\", с универсальным выпуском, с декоративной розеткой","Расходные материалы",1,"шт (на 1 конкурсанта) ",{"$f":"E97*$C$13","v":5}]
[80,"Керамика.Раковина подвесная 553 мм, с отверстием под смеситель\nи переливом","настенный монтаж  1 отверстие под смеситель с переливом 553 x 386 мм санитарная керамика","Расходные материалы",1,"шт (на 1 конкурсанта) ",{"$f":"E98*$C$13","v":5}]
[81,"Душевой комплект (смеситель, шланг, лейка держатель)","Настенный рычажный смеситель для душа\nМонтаж на стене, стандартных эксцентриках (в комплекте: эксцентрики, металлические отражатели, уплотнительные прокладки)\nКерамический картридж для регулировки смешивания холодной/горячей воды\nМеталлическая рукоятка\nНа корпусе указатели положения горячей / холодной воды\nСостав комплекта:  смеситель для душа, настенный, лейка 70мм, держатель, шланг 1500мм, хром\n","Расходные материалы",1,"шт (на 1 конкурсанта) ",{"$f":"E99*$C$13","v":5}]
["Охрана труда и техника безопасности (дополнительно)"]
["№","Наименование ","Краткие (рамочные) технические характеристики","Вид","Количество","Единица измерения","Итоговое количество","Рекомендации представителей индустрии (указывается конкретное оборудование)"]
[1,"Не требуется",null,"Охрана труда",0,"шт",{"$f":"E102*$C$13","v":0}]
["2. Зона для работ предусмотренных в Модуле Бвариативной Задаче № 4  (по количеству рабочих мест) "]
["Рабочее место Конкурсанта (расходные материалы по количеству конкурсантов)"]
["№","Наименование ","Краткие (рамочные) технические характеристики","Вид","Количество","Единица измерения","Итоговое количество","Рекомендации представителей индустрии (указывается конкретное оборудование)"]
[1,"Труба медная Ø15х1.0 мм Длина штанги 2.5м","Неотоженная Д15, штанга по 2.5 метра","Расходные материалы",2,"шт (на 1 конкурсанта) ",{"$f":"E106*$C$13","v":10}]
[2,"Троник-пресс Ø15х15х15, медь","Троник пресс Ø15х15х15, медь\nСистемные пресс-фитинги из меди и бронзы для медных труб по EN 1057 или рабочему стандарту DVGW GW 392 для питьевых и отопительных трубопроводов.","Расходные материалы",2,"шт (на 1 конкурсанта) ",{"$f":"E107*$C$13","v":10}]
[3,"Муфта пресс переходная Ø15х1/2\"НР, бронза","Муфта пресс переходная Ø15х1/2\"НР бронза\nСистемные пресс-фитинги из меди и бронзы для медных труб по EN 1057 или рабочему стандарту DVGW GW 392 для питьевых и отопительных трубопроводов.","Расходные материалы",2,"шт (на 1 конкурсанта) ",{"$f":"E108*$C$13","v":10}]
[4,"Шпилька резьбовая М10 (1м)","согласно DIN 976-1\nматериал: сталь, класс прочности 4.8\nоцинковка: электролитическая.  Длинна 1 м.","Расходные материалы",0.5,"шт (на 1 конкурсанта) ",{"$f":"E109*$C$13","v":2.5}]
[5,"Подпятник М8/М10 ","для удобства монтажа крепежные отверстия размещены под углом 90°\nс 4-х кратно приваренной соединительной гайкой М8/М10\nматериал: сталь\nоцинковка: электролитическая","Расходные материалы",3,"шт (на 1 конкурсанта) ",15]
[6,"Саморезы конструкционные (шурупы) Rusconnect","Шуруп Rusconnect CT 06030 с/нарез. д/дерева, прессшайба 6х30.\nНаконечник острый\nШлиц Torx (T, Tx)\nПокрытие желтопассивированный\nДиаметр, мм 6\nФорма головки плоская пресс-шайба\nДлина, мм 30\nМатериал закаленная сталь","Расходные материалы",6,"шт (на 1 конкурсанта) ",30]
["Охрана труда и техника безопасности (дополнительно)"]
["№","Наименование ","Краткие (рамочные) технические характеристики","Вид","Количество","Единица измерения","Итоговое количество","Рекомендации представителей индустрии (указывается конкретное оборудование)"]
[1,"Не требуется",null,"Охрана труда",0,"шт (на 1 конкурсанта) ",{"$f":"E114*$C$13","v":0}]
["Расходные материалы на всех конкурсантов и экспертов"]
["№","Наименование ","Краткие (рамочные) технические характеристики","Вид","Количество","Единица измерения","Итоговое количество","Рекомендации представителей индустрии (указывается конкретное оборудование)"]
[1,"Бумага А4","критически важные характеристики позиции отсутствуют","Расходные материалы",0.5,"пачка 500 листов",{"$f":"E117*$C$13","v":2.5}]
[2,"Бумага А3","критически важные характеристики позиции отсутствуют","Расходные материалы",0.03,"пачка 500 листов",{"$f":"E118*$C$13","v":0.15}]
[3,"Скотч двусторонний 10м","Тип клейкая лента\nТип клейкой ленты двухсторонняя\nТолщина, мкм 95\nДлина, м 10","Расходные материалы",1,"шт",{"$f":"E119","v":1}]
[4,"Ручка шариковая","критически важные характеристики позиции отсутствуют","Расходные материалы",1,"шт",{"$f":"(E120*$C$12)+15","v":23}]
[5,"Скобы для степлера №24/6","критически важные характеристики позиции отсутствуют","Расходные материалы",2,"упак",{"$f":"E121","v":2}]
[6,"Скрепки канцелярские","22 мм, 100 шт","Расходные материалы",1,"упак",{"$f":"E122","v":1}]
[7,"Файлы А4","критически важные характеристики позиции отсутствуют","Расходные материалы",1,"упак",1]
[8,"Ножницы","критически важные характеристики позиции отсутствуют","Расходные материалы",2,"шт",2]
[9,"Дырокол для листов","толщина пробивки 30 листов","Расходные материалы",2,"шт",2]
[10,"Нож канцелярский","критически важные характеристики позиции отсутствуют","Расходные материалы",2,"шт",2]
[11,"Разметочная клейкая лента 50 мм х 50 м, желто-черная","критически важные характеристики позиции отсутствуют","Расходные материалы",5,"шт",5]
[12,"Армированная клейкая лента 48 мм х 40 м серая","критически важные характеристики позиции отсутствуют","Расходные материалы",2,"шт",2]
[13,"Блокнот для флипчарта, 20 листов","Материал:бумага\nКоличество листов:20\nЛиновка:нет\nКоличество отверстий для крепления:6\nПлотность бумаги:65 г/м²\nДлина:900 мм\nШирина:600 мм","Канцелярия",1,"шт",1]
[14,"Набор маркеров для флипчартов, 4 шт","Цвет:набор\nТолщина линии:5.000 мм\nФорма наконечника:круглая\nКоличество в упаковке:4 шт\nОснова:водная\nУстойчивость к засыханию:есть","Канцелярия",2,"шт",2]
[15,"Маркер черный","Материал корпуса:пластик\nФорма корпуса:круглая\nЦвет чернил:черный\nТолщина линии письма :3\nВодостойкие чернила:да\nБыстросохнущие чернила:да\nДиаметр корпуса:16 мм","Канцелярия",2,"шт",{"$f":"E131","v":2}]
[16,"Планшет с зажимом А4","Тип папки-планшета:без крышки\nФормат:A4\nЦвет:черный\nМатериал:пластик\nРасположение зажима:по центру\nТолщина материала:0.9 мм\nЗащита нижнего края папки:нет","Канцелярия",1,"шт",{"$f":"E132*$C$12","v":8}]
[17,"Пакеты для мусора 50 л 20 шт","Мешки для мусора (50л/20 шт)\nОсобо прочные мешки для строительного мусора и большие мешки объемом 50 литров.","Канцелярия",2,"упак",{"$f":"E133","v":2}]

{"sheet":"Личный инструмент конкурсанта","index":4,"n_rows":63,"n_cols":7,"rows_kept":63,"merged":[[0,0,0,6],[1,0,1,6],[2,0,2,6],[3,0,3,6],[4,0,4,6],[5,0,5,6]]}
["ПРОЕКТ"]
["Инфраструктурный лист для оснащения конкурсной площадки"]
[{"$f":"'Информация о Чемпионате'!B4","v":"Региональный этап Чемпионата по профессиональному мастерству «Профессионалы» в 2026г."}]
["по компетенции"]
[{"$f":"'Информация о Чемпионате'!B3","v":"Сантехника и отопление (юниоры)"}]
["Личный инструмент конкурсанта"]
["№","Наименование ","Краткие (рамочные) технические характеристики","Вид","Количество","Единица измерения","Примечание "]
[1,"Спецодежда от общих производственных загрязнений ","Брюки+куртка, полукомбинезон+куртка, комбинезон ","СИЗ",1,"комплект"]
[2,"Наколенники гелевые профессиональные","Технические характеристики на усмотрение участника","СИЗ",1,"пара"]
[3,"Обувь с металлическимим или композитными вставками ","Сандали, полуботинки, ботинки ","СИЗ",1,"пара"]
[4,"Очки защитные открытые","Цвет линзы: прозрачный\nОптический класс: №1 (не дает искажений, не имеет ограничений по длительности ношения)\nМатериал линзы: поликарбонат\nМатериал оправы: PC (поликарбонат) / BT (Полибутилентерефталат) / TPE (термоэластопласт)\nЗащита: от механических воздействий, УФ-излучения\nПокрытие: против царапин и запотевания ","СИЗ",1,"шт"]
[5,"Перчатки трикотажные для защиты от механических рисков (лотные)","Для защиты от механических рисков (лотные)","СИЗ",5,"пара"]
[6,"Перчатки трикотажные для защиты от механических рисков (для точных работ)","Для защиты от механических рисков (для точных работ)","СИЗ",5,"пара"]
[7,"Перчатки трикотажные, бесшовные, с полимерным покрытием для защиты от механических рисков (для точных работ)","Для защиты от механических рисков (для точных работ)","СИЗ",5,"пара"]
[8,"Перчатки  ХБ без полимерного покрытия для работы с высокими температурами","Перчатки без ПВХ покрытия используют на производствах и предприятиях, где предусмотрена работа с высокими температурами.","СИЗ",1,"пара"]
[9,"Перчатки защитные для работы с открытым пламенем до 300 град.","Крага перчатки выполнена из специальной огнестойкой ткани, сохраняющей форму. Защищает запястный сустав и предплечье от искр и брызг расплавленного металла. Прошитые огнестойкой кевларовой нитью.","СИЗ",1,"пара"]
[10,"Набор отверток PH1, PH2, PZ1, PZ2, шлицевые","Набор отверток с эргономичными рукоятками предназначен для монтажных и демонтажных работ с различными резьбовыми соединениями. В наборе поставляется держатель для отверток.\nВ набор входит: PH1, PH2, PZ1, PZ2, шлицевые","Личный инструмент конкурсанта",1,"набор"]
[11,"Ножовка по металлу","Безопасная слесарная лучковая ножовка в комплекте с полотном. Безопасная рукоятка для точного ведения ножовки: уменьшается опасность несчастного случая,  в лучке есть место для запасных полотен: инструмент всегда под рукой,  в рукоятку встроено быстрозажимное устройство с точной регулировкой: оптимальное натяжение полотна,  полотно четырехкратно поворачивается на 90o: удобно работать в труднодоступных местах. Длина 300 мм. Вес 680 гр.\n","Личный инструмент конкурсанта",1,"шт"]
[12,"Полотно по металлу","Из инструментальной стали, из эластичной быстрорежущей стали. Биметаллическое ножовочное безопасное полотно. Отличная гибкость: эластичная быстрорежущая сталь. Полотно 4 HSSE 4 Plus Повышенная твердость зубцов:Твердость около 65 HRC: срок службы, в среднем, увеличен в 4 раза, При очень большой нагрузке: значительно снижается опасность разрушения, Раздельный развод зубьев: точная резка \n Размер 300, размер зубьев на дюйм - 24, вес - 20 гр.","Личный инструмент конкурсанта",3,"шт"]
[13,"Клещи переставные-гаечный ключ, хромированные 180 мм","Регулируемый инструмент для работы с винтовыми соединениями\nПредназначен для захвата, фиксации, опрессовки и гибких деталей\nРегулировка на детали нажатием кнопки\nБесступенчатая установка нужного размера ключа \nМаксимальный захват: 40 мм;\nколичество позиций установки: 13","Личный инструмент конкурсанта",1,"шт"]
[14,"Клещи переставные-гаечный ключ, хромированные 250 мм","Регулируемый инструмент для работы с винтовыми соединениями\nПредназначен для захвата, фиксации, опрессовки и гибких деталей\nРегулировка на детали нажатием кнопки\nБесступенчатая установка нужного размера ключа \nМаксимальный захват: 52 мм;\nколичество позиций установки: 17","Личный инструмент конкурсанта",1,"шт"]
[15,"Клещи переставные-гаечный ключ, хромированные 300 мм","Регулируемый инструмент для работы с винтовыми соединениями\nПредназначен для захвата, фиксации, опрессовки и гибких деталей\nРегулировка на детали нажатием кнопки\nБесступенчатая установка нужного размера ключа \nМаксимальный захват: 60 мм;\nколичество позиций установки: 22","Личный инструмент конкурсанта",1,"шт"]
[16,"Переставные клещи с кнопочным фиксатором черненые 300 мм","Предназначены для труб диаметром до 70 мм (2 ¾ дюйма), а также гаек и винтов под ключ сечением до 60 мм. Принцип самофиксации предотвращает выскальзывание, деталь надежно удерживается. Инструмент заменяет полный набор гаечных ключей.","Личный инструмент конкурсанта",1,"шт"]
[17,"Плоскогубцы комбинированные черненые, 180 мм","Имеют комбинированную рабочую поверхность. Кроме специальной выемки и захватного рельефного участка поверхности губок, присутствует плоская режущая часть.","Личный инструмент конкурсанта",1,"шт"]
[18,"Клещи зажимные универсальные 250 мм","Инструмент позволяет надежно фиксировать круглые, плоские, профилированные, фигурные детали или заготовки неправильной формы. Верхняя губа клещей прямая с зазубренными насечками, нижняя — плоская изогнутая образует небольшую выемку. В совокупности с мощным рычажным механизмом губки клещей выдают высокое усилие при зажиме детали.","Личный инструмент конкурсанта",1,"шт"]
[19,"Клещи зажимные универсальные 180 мм","Инструмент позволяет надежно фиксировать круглые, плоские, профилированные, фигурные детали или заготовки неправильной формы. Верхняя губа клещей прямая с зазубренными насечками, нижняя — плоская изогнутая образует небольшую выемку. В совокупности с мощным рычажным механизмом губки клещей выдают высокое усилие при зажиме детали.","Личный инструмент конкурсанта",1,"шт"]
[20,"Нож универсальный 220 мм ","Универсальный нож профессионального качества в чехле предназначен для многоцелевого использования: в мастерских различного профиля, при выездных ремонтных работах, в быту.","Личный инструмент конкурсанта",1,"шт"]
[21,"Гратосниматель универсальный","Для быстрого и чистого снятия внешней и внутренней фаски медных труб.\nУниверсальный - внутренний и внешний.\nЛегко снимает любую фаску.\nФаскосниматель внутренний и внешний для труб D 4 - 36 мм (1/8“ – 1.3/8“ дюйма).","Личный инструмент конкурсанта",1,"шт"]
[22,"Адаптер для фаскоснимателя","Адаптер для установки гратоснимателя на шуруповерт.","Личный инструмент конкурсанта",1,"шт"]
[23,"Универсальный ступенчатый ключ","Трещотка 1/2'', переставляется, быстрый и легкий монтаж.\nИзготовлен из хромванадиевой стали, закаленный, никелированный.","Личный инструмент конкурсанта",1,"шт"]
[24,"Набор монтажного инструмента для установки раковин, унитазов и сливов","Шарнирный торцевой ключ для M8 и M10 для легкого закручивания в любом положении.\nАдаптер для самых распространенных размеров сливов в ванных и раковинах: упрощение рабочего процесса.\nУстановка удлинителей 9 мм и 13 мм, а также адаптера на шарнирном торцевом ключе: один инструмент выполняет 5 функций.","Личный инструмент конкурсанта",1,"набор"]
[25,"Набор комбинированных рожково-накидных шарнирных ключей 8-19 мм","Ключ гаечный комбинированный с трещоткой и шарниром предназначен для эффективного откручивания или закручивания болтовых соединений в труднодоступных местах. Набор из 8 комбинированных трещоточных шарнирных ключей, размеры: 8; 10; 12; 13; 14; 15; 17; 19.","Личный инструмент конкурсанта",1,"шт"]
[27,"Аккумуляторная дрель-шуруповёрт ","Аккумуляторная дрель-шуруповёрт ","Личный инструмент конкурсанта",2,"шт"]
[28,"Эксцентриковая насадка для аккумуляторной дрели-шуруповерта","Для сверления и завинчивания в труднодоступных местах.\n12 фиксированных позиций с функцией быстрой замены для большей гибкости в работе.\nСверление битами диаметром до ø 6 мм","Личный инструмент конкурсанта",1,"шт"]
[29,"Держатель бит для аккумуляторной дрели-шуруповерта","Магнитный держатель для наконечников используется совместно с дрелями-шуруповертами. Держатель является переходником, одна часть которого зажимается в шуруповерт, другая - надежно и точно фиксирует биту с помощью магнита. Он облегчает выполнение монтажных работ. Хвостовик и наконечник имеют высокую соосность, используется при монтажных работах разной сложности. Подходит для бит, имеющих шестигранный хвостовик.","Личный инструмент конкурсанта",1,"шт"]
[30,"Прямоугольная насадка для аккумуляторной дрели-шуруповерта","Насадка угловая для шуруповерта","Личный инструмент конкурсанта",1,"шт"]
[31,"Набор бит для шуруповерта (PH1, PH2, PZ1, PZ2, TORX)","Инструментальные насадки из хромованадиевой стали (качество S2); насадки с цветовой кодировкой: для быстрого и простого нахождения подходящей насадки; магнитный быстросменный переходник; с адаптером для сменных торцевых головок (адаптером для торцевых головок); высококачественный, прочный футляр ","Личный инструмент конкурсанта",1,"набор"]
[32,"Набор сверел по металлу (1,5-13) мм","Свёрла изготовлены из высококачественной инструментальной легированной стали.\nИмеют цилиндрический тип хвостовика.","Личный инструмент конкурсанта",1,"набор"]
[33,"Трубный зажим 16-25 мм","Держатель для труб","Личный инструмент конкурсанта",1,"шт"]
[34,"Приспособление для выпрямления металло-полимерной трубы 16-20 мм","Приспособление для выпрямления трубы с возможностью установки на станок для разматывания трубы для выпрямления композитных диаметрами 16 и 20 мм.","Личный инструмент конкурсанта",1,"шт"]
[35,"Метр складной деревянный 2м белый","Длина измерительной ленты 2 м\nКласс точности 3\nМатериал измерительной поверхности дерево\nШирина, см 1.6\nГабариты, мм\t247x16x37\nВес, кг\t0.134","Личный инструмент конкурсанта",2,"шт"]
[36,"Угольник металлический 250-400 мм","Угольник разметочный 165*305\nДлина большей стороны 305 мм (разметка на 300 мм), ширина 50 мм, толщина 3 мм\nДлина меньшей стороны 165 мм, ширина 40 мм, толщина 12 мм.\nАнодированное антикоррозийное покрытие;\nЛазерная гравировка шкалы; ","Личный инструмент конкурсанта",2,"шт"]
[37,"Карандаш","Карандаш чернографитный","Личный инструмент конкурсанта",5,"шт"]
[38,"Маркер","Материал корпуса:пластик\nФорма корпуса:круглая\nЦвет чернил:черный\nТолщина линии письма :3\nВодостойкие чернила:да\nБыстросохнущие чернила:да\nДиаметр корпуса:16 мм","Личный инструмент конкурсанта",5,"шт"]
[39,"Скотч малярный ","Клейкая лента малярная легкоудаляемая","Личный инструмент конкурсанта",3,"шт"]
[40,"Трубный ключ 45°","Трубный ключ с усиленной гильзой, шлифованными губками 90 град. и узким зевом.","Личный инструмент конкурсанта",1,"шт"]
[41,"Угловой  трубный ключ","Трубный ключ с усиленной гильзой, шлифованными губками 45 град. и узким зевом.","Личный инструмент конкурсанта",1,"шт"]
[42,"Арматурный ключ с узкими губками","Арматурный ключ с узкими губками, растровая регулировка, для хромированых и полированных поверхностей","Личный инструмент конкурсанта",1,"шт"]
[43,"Ключ для смесителей с пластиковыми губками","Хромванадиевая специальная сталь, цельнокованый стальной, хромированный, 4 ступени регулирования, зубья по всей рабочей поверхности губок. С пластмассовыми губками для бережного обхождения с арматурой","Личный инструмент конкурсанта",1,"шт"]
[44,"Сантехнический монтажный комплект \"de luxe\" 16 предметов","16 предметов","Личный инструмент конкурсанта",1,"шт"]
[45,"Струбцина ручная универсальная 12","Быстрозажимная струбцина предназначена для работы с различными материалами. Губки сплошные, рама выполнена из стали","Личный инструмент конкурсанта",1,"шт"]
[46,"Молоток слесарный 300гр","Слесарный молоток с квадратным бойком весом 300 г. предназначен для работы с металлом. Заостренный с одного конца боек облегчает работу в труднодоступных местах.","Личный инструмент конкурсанта",1,"шт"]
[47,"Ключ разводной","Разводной ключ с тонкими губками. Инструмент выполнен из хромованадиевой стали, обладает увеличенным сроком службы и повышенной защитой от коррозии.","Личный инструмент конкурсанта",2,"шт"]
[48,"Набор напильников","Набор из 3-х напильников 200 мм с личной насечкой. Инструменты состоят из высокопрочной рабочей части и удобной рукоятки. Ручки имеют двухкомпонентное антискользящее покрытие, а также снижают уровень вибрации в процессе обработки.","Личный инструмент конкурсанта",1,"набор"]
[49,"Набор Г-образных шестигранников","ключи изготовлены из хром-ванадиевой стали;\nдлинная часть стержня оснащена сферической головкой с 6 гранями;\nв набор входят Г-образные ключи: 1.5, 2, 2.5, 3, 4, 5, 6, 8 и 10 мм;\nкомплект поставляется в удобном держателе с захватом и четкой маркировкой размеров.","Личный инструмент конкурсанта",1,"набор"]
[50,"Набор Г-образных \"звездочек\"","ключи изготовлены из никель-хром-молибденового сплава;\nв набор входят Г-образные ключи: ТХ8, ТХ10, ТХ15, ТХ20, ТХ25, ТХ 27, ТХ 30, ТХ40 и ТХ50;\nкомплект поставляется в удобном держателе с захватом и четкой маркировкой размеров.","Личный инструмент конкурсанта",1,"набор"]
[51,"Огнеупорный коврик","Огнеустойчивый коврик 330 х 500 мм. для защиты поверхностей от пламени.","Личный инструмент конкурсанта",1,"шт"]
[52,"Чистящие губки для медных труб","Чистящие губки из нетканого материала. Удаляют оксидный слой, ржавчину, поверхностные загрязнения, следы жира и масла: чистка до металлического блеска.","Личный инструмент конкурсанта",1,"шт"]
[53,"Цифровой угломер  200-400мм ","Электронный угломер предназначен для измерения углов. Имеет встроенный электронный датчик угла, показания с которого отображаются на встроенном ЖК цифровом дисплее.","Личный инструмент конкурсанта",1,"шт"]
[54,"Цифровой штангенциркуль","Цифровой штангенциркуль используется для проведения как наружных, так и внутренних измерений различных изделий или заготовок. Измерения производятся с высокой точностью ±0.03 мм. Результаты отображаются на ЖК дисплее с точностью до тысячных.","Личный инструмент конкурсанта",1,"шт"]
[55,"Цифровой уровень","Функции:\nИзмерения в градусах, мм/м, %, in/ft\nАвтоматическая калибровка\nЖК экран с подсветкой\nМагниты в основании\nАвтоматическое отключение\nХарактеристики\nАвтоматическое отключение питания, мин 5\nДиапазон углового измерения    4x90\nИсточник питания 2 батареи AAA, 1.5 В\nРабочая температура, °С -10...+50\nТочность, dB ±0.15°\nШаг измерения, dB 0.05°\nКомплект поставки\nЦифровой уровень - 1 шт.\nЧехол - 1 шт.\nБатареи - 1 шт.\nИнструкция - 1 шт.","Личный инструмент конкурсанта",1,"шт"]
[56,"Цифровой динамометрический ключ + набор насадок","Ключ динамометрический с цифровой индикацией, усилие затяжки 7-135Nm, оснащен дисплеем, на котором отображаются рабочие параметры, и трещоткой. Рифленая ручка предотвращает скольжение руки во время работы. Инструмент имеет посадочный квадрат 3/8 и выполнен из прочной высококачественной стали. Поставляется в надежном футляре для безопасного хранения и транспортировки","Личный инструмент конкурсанта",1,"шт"]
[57,"Ящик для инструмента (возможно с колесами)","Съемный лоток DS150 - 158 мм x 336 мм x 550 мм;\nСъемный внутренний органайзер DS300 - 308 мм x 336 мм x 550 мм;\nСъемный внутренний органайзер DS400 - 408 мм x 366 мм x 550 мм;\nМеталлическая тележка.","Личный инструмент конкурсанта",1,"шт"]